Workbook

Sheet Cover Page
D1: Add company logo
N2: Version 24.2a (for incinerators) - 27/11/24
N4: Note that there is another version of this template available for co-incinerators
B8: Add photo
N13: Notes:
N14: This template may require adjustments by individual operators to meet specific reporting requirements as defined in the site Permit(s)
B29: Annual Performance Report 2024
B31: Permit EPR/HP3431HK
B33: Staffordshire Energy Recovery Facility
B35: other name of facility (if applicable)
B37: Veolia ES Staffordshire Limited
B39: Year: | C39: 2024
B41: Address: | C41: Enterprise Drive, Four Ashes, Woverhampton, Staffordshire, WV10 7DF
B43: Tel: | C43: 0203 567 6300
B45: Email: | C45: christine.skaramaga@veolia.com
B47: Prepared by: | C47: Christine Skaramaga | F47: Position: | G47: Senior Environmental Engineer
B49: Approved by: | C49: Matt Richardson | F49: Position: | G49: Plant Manager
B51: Version: | C51: 1
B53: Issue Date: | C53: 2025-01-31

Sheet Contents
A1: =+'Cover Page'!$B$29 -> Annual Performance Report 2024 | E1: =+'Cover Page'!$B$33 -> Staffordshire Energy Recovery Facility
A3: Contents | K3: Notes:
A4: Section | B4: Subject | H4: Page | K4: Section references and Page nos. to be inserted
B5: Facility Information | H5: 3 | K5: Sections and Subjects may require adjustment by individual operators to meet specific reporting requirements as defined in the sites Permit(s)
B6: Operational Data | H6: 4
B7: Operational Summary | H7: 6
B8: Performance Form 1 | H8: 7
B9: Energy Form 1 | H9: 8
B10: Permit Compliance | H10: 9
B11: Improvements | H11: 10
B12: Public Liaison | H12: 11
B13: Carbon dioxide and nitrous oxide emissions | H13: 12
B14: Residue Quality | H14: 14
B15: Emissions to Water | H15: 15
B16: Emissions to Air (periodically monitored) | H16: 16
B17: Emissions to Air (continuously monitored) | H17: 20
B18: Hydrogen Chloride emissions | H18: 22
B19: Sulphur Dioxide emissions | H19: 23
B20: Oxides of Nitrogen emissions | H20: 24
B21: Total Organic Carbon emissions | H21: 25
B22: Particulate Matter emissions | H22: 26
B23: Carbon Monoxide emissions | H23: 27
B24: Ammonia emissions | H24: 28
A27: Version Control
A28: Section | B28: Information | H28: Date
A35: Distribution
A36: Copy | B36: Name, Role | H36: No.
A37: 1 | B37: Iain Storer, EA Installations Team Leader | H37: 1
A45: This report is required under the Industrial Emissions Directive’s Article 55(2) requirements on reporting and public information on waste incineration plants and co-incineration plants, which require the operator to produce an annual report on the functioning and monitoring of the plant and make it available to the public.
C53: 2025-01-31

Sheet Facility Info
A1: =+'Cover Page'!$B$29 -> Annual Performance Report 2024 | E1: =+'Cover Page'!$B$33 -> Staffordshire Energy Recovery Facility
A3: Plant Description and Design | K3: Notes:
A5: The ERF is operated by Veolia ES Staffordshire Ltd, a wholly owned subsidiary of Veolia. The plant is designed to burn predominantly residual municipal solid waste and has a capacity to process up to 340,000 tonnes annually. The facility has been built to serve Staffordshire County Council, its eight constituent Councils and its other partner authorities. The facility can generate approximately 29MW of electricity from waste. The facility uses 3.2MW and the balance is exported to the national grid. In tangible terms the electricity generated is equivalent to 66,000 homes. Technical details of the plant: - Construcions Industrielles de la Mediterranee (CNIM) - Design - Maximum Permitted Refuse throughput – 340,000 tonnes per annum - Storage capacity 4,500 tonnes - Approximately four and a half days full plant capacity - Number of tipping bays - 5 - Steam output – 64.5 tonnes of steam per hour at 400degC at 60bar - Flue gas treatment - CNIM ammonia injection for the reduction of NOx, dry lime injection for the removal of acid gases, activated carbon injection for removal of metals and dioxins followed by high performance bag filters for removal of particulates, dispersal via two 80 metre high stacks - Maximum energy generating capacity 29MW The ERF is regulated by the Environment Agency and is certified in compliance with: - ISO 9001:2008 - ISO 14001:2004 - ISO 45001:2018 | K5: Include summary of plant design, design capacity, no. of combustion lines, electrical and heat capacity and any other general information that describes the facility, its location and purpose
A20: Summary of Operational Processes and Procedures
A22: All gaseous emissions generated during the combustion process pass through an extensive flue gas cleaning process which starts in the boiler directly above the furnace with injected ammonia to reduce the levels of oxides of nitrogen. After the boiler, super heater and economiser the gases are cooled to approximately 150 degrees Celsius. Activated carbon is added to remove metals and dioxins and lime is added to remove acidic gases such as SO2 and HCl. Most of this reaction occurs in the bag filters where particulates are removed and APCr is formed. There is recirculation of APC where the used lime and carbon is recirculated further to remove chlorinated gases via a recirculation silo. This secondary reactant is recirculated back to the original process via a lab loop. The cleaned gasses are finally released into the atmosphere through the chimney after the bag house. In compliance with the IED and EPR Permit, the flue gasses are continuously monitored using MCertS accredited equipment. In addition to the continuous monitoring, and extractive sampling campaign is undertaken twice a year by an approved service supplier. The organisation used for analysis and monitoring is accredited by the United Kingdom Accreditation Service (UKAS) and the Environment Agency's Monitoring Certification Scheme (MCertS). Through the process there is continuous emissions monitoring of six main pollutants with ELVs using MCertS approved instruments. The pollutants measured in this way comprise: particulate matter (total), total organic carbon, carbon monoxide, sulphur dioxide, hydrogen chloride, oxides of nitrogen and ammonia. Staffordshire ERF has an experienced Veolia management team from other existing plants. The plant has been designed using proven technology and experience and is performing well. The plant supports our company ethos, as we operate 10 facilities in the UK. Reliable environmental controls and a robust management system ensure that compliance with the Industrial Emissions Directive and EPR Permit. Veolia staff are aware of the environmental impacts of their work and exercise a high standard of housekeeping. Training and competency of staff is controlled by the Veolia Business Management System. The Management System covers training, awareness and competence. The company identifies the training requirements of its employees and provides suitable resources to ensure they have the required knowledge, skills and expertise to carry out their duties. | K22: Include summary of key processes and procedures such as (but not limited to); waste reception, control rooms, grate, bed and boiler, energy & heat generation, cooling systems, residue management, emission controls, health and safety systems, maintenance

Sheet Operational Data
A1: =+'Cover Page'!$B$29 -> Annual Performance Report 2024 | E1: =+'Cover Page'!$B$33 -> Staffordshire Energy Recovery Facility
A3: Operational Data
A4: Plant Size | B4: 340000 | D4: tonnes pa | F4: MWth | G4: 29 | H4: MWe | J4: Notes:
A5: No. of combustion lines | B5: 2 | D5: No. of Turbines: | F5: 1 | J5: * - RDF to include SRF
J6: ** - Combusted tonnage = tonnes delivered in period + (tonnes in bunker at start of period – tonnes in bunker at end of period), or equivalent calculation depending on plant type
A7: Waste types received | B7: Unit | C7: Q1 | D7: Q2 | E7: Q3 | F7: Q4 | G7: Year Total | H7: %
A8: Household / Local Authority | B8: tonnes | C8: 84684.02 | D8: 82568.98 | E8: 78720.38 | F8: 75908.13 | G8: =SUM(C8:F8) -> 321881.51 | H8: =IF(G8>0,G8/$G$18,"-") -> 0.9785115161
A9: Commercial & Industrial | G9: =SUM(C9:F9) -> 0 | H9: - | J9: *** - CHP plants only
A10: Hazardous | G10: 0 | H10: - | J10: **** Availability Definition: 'the availability of a line is to be calculated by the number of hours the line reported Continuously Monitored emission levels to the Regulator through the calendar year divided by the total number of hours in that year. The overall plant availability is calculated as the Mean of all lines in the plant. For clarity this includes periods of abnormal operation.' Rationale: The primary function of an Energy from Waste facility is the disposal of waste. It follows therefore that the availability of a plant is determined by the period of time a facility spends undertaking this activity.
A11: Clinical | G11: 0 | H11: -
A12: Waste wood (biomass) | G12: 0 | H12: -
A13: Refuse Derived Fuel * - H'hold/LA | C13: 423.44 | D13: 1112.54 | E13: 1754.6 | F13: 3778.06 | G13: =SUM(C13:F13) -> 7068.64 | H13: 0.02148848389
A14: Refuse Derived Fuel * - C&I | G14: 0 | H14: -
A15: Other [Please specify] | G15: 0 | H15: -
A16: Other [Please specify] | G16: 0 | H16: -
A17: Other [Please specify] | G17: 0 | H17: -
A18: Total waste received | C18: =SUM(C8:C17) -> 85107.46 | D18: =SUM(D8:D17) -> 83681.52 | E18: =SUM(E8:E17) -> 80474.98 | F18: =SUM(F8:F17) -> 79686.19 | G18: 328950.15 | H18: =IF(G18>0,G18/$G$18,"-") -> 1
A19: Rejected Waste | G19: =SUM(C19:F19) -> 0 | H19: =IF(G19>0,G19/$G$18,"-") -> -
A20: Unprocessed waste transferred out | G20: =SUM(C20:F20) -> 0 | H20: =IF(G20>0,G20/$G$18,"-") -> -
A21: Total waste combusted ** | C21: 87606 | D21: 84442 | E21: 80419 | F21: 85544 | G21: =SUM(C21:F21) -> 338011 | H21: =IF(G21>0,G21/$G$18,"-") -> 1.027544751
J22: Password for protected cells A password has been set to prevent accidental editing of cells with formulae. If you still need to make an edit for some reason then the password = 1234
A23: Energy Usage / Export | B23: Unit | C23: Q1 | D23: Q2 | E23: Q3 | F23: Q4 | G23: Year Total | H23: KWh/te
A24: Power Generated | B24: MWh | C24: 56301 | D24: 55196 | E24: 51410 | F24: 51243 | G24: =SUM(C24:F24) -> 214150 | H24: =IF(G24>0,G24*1000/$G$21,"-") -> 633.5592629
A25: Power Exported | C25: 50228 | D25: 49045 | E25: 45271 | F25: 45079 | G25: =SUM(C25:F25) -> 189623 | H25: =IF(G25>0,G25*1000/$G$21,"-") -> 560.9965356
A26: Power Used on site | C26: =(C24-C25)+C27 -> 6121 | D26: =(D24-D25)+D27 -> 6224 | E26: 6210 | F26: 6318 | G26: =SUM(C26:F26) -> 24873 | H26: =IF(G26>0,G26*1000/$G$21,"-") -> 73.58636257
A27: Power Imported | C27: 48 | D27: 73 | E27: 71 | F27: 154 | G27: 346 | H27: =IF(G27>0,G27*1000/$G$21,"-") -> 1.023635325
A28: Parasitic Load | B28: % | C28: =IF(C24>0,1-C25/(C24+C27),"-") -> 0.108626595 | D28: =IF(D24>0,1-D25/(D24+D27),"-") -> 0.1126128571 | E28: =IF(E24>0,1-E25/(E24+E27),"-") -> 0.1206270274 | F28: =IF(F24>0,1-F25/(F24+F27),"-") -> 0.1229254626 | G28: =IF(G24>0,1-G25/(G24+G27),"-") -> 0.1159602044
A29: Thermal Energy Produced *** | B29: MWh | G29: =SUM(C29:F29) -> 0 | H29: =IF(G29>0,G29*1000/$G$21,"-") -> -
A30: Thermal Energy Exported *** | G30: 0 | H30: =IF(G30>0,G30*1000/$G$21,"-") -> -
A31: R1 value (if applicable) | B31: R1 | G31: 0.71
A33: Waste Disposal & Recovery | B33: Unit | C33: Q1 | D33: Q2 | E33: Q3 | F33: Q4 | G33: Year Total | H33: % inputs
A34: APC Residues - produced | B34: tonnes | C34: 1844 | D34: 1938 | E34: 1769 | F34: 1951 | G34: =SUM(C34:F34) -> 7502 | H34: =IF(G34>0,G34/$G$21,"-") -> 0.02219454396
A35: IBA - produced | C35: 15399 | D35: 16913 | E35: 16120 | F35: 14576 | G35: 63008 | H35: =IF(G35>0,G35/$G$21,"-") -> 0.1864081346
A36: Metals recycling | C36: 1313 | D36: 1072 | E36: 1329 | F36: 1466 | G36: =SUM(C36:F36) -> 5180 | H36: 0.01532494505
A37: Interceptor waste | C37: 61 | D37: 0 | E37: 0 | F37: 78 | G37: =SUM(C37:F37) -> 139 | H37: 0.0004112292204
A38: Other | C38: 0 | D38: 0 | E38: 0 | F38: 0 | G38: 0 | H38: -
A39: Other | C39: 0 | D39: 0 | E39: 0 | F39: 0 | G39: 0 | H39: -
A41: Raw Material Usage | B41: Unit | C41: Q1 | D41: Q2 | E41: Q3 | F41: Q4 | G41: Year Total | H41: kg or Ltr /te
A42: Mains Water | B42: m3 | C42: 9762 | D42: 8211 | E42: 9745 | F42: 8339 | G42: =SUM(C42:F42) -> 36057 | H42: =IF(G42>0,G42/$G$21,"-") -> 0.1066740432
A43: Other Water | B43: ltrs | G43: 0 | H43: =IF(G43>0,G43/$G$21,"-") -> -
A44: Ammonia | B44: kgs | C44: 283000 | D44: 312000 | E44: 302000 | F44: 285000 | G44: 1182000 | H44: 3.496927615
A45: Urea | B45: kgs | G45: =SUM(C45:F45) -> 0 | H45: -
A46: Activated Carbon | B46: kgs | C46: 22300 | D46: 17400 | E46: 17200 | F46: 21400 | G46: 78300 | H46: 0.2316492659
A47: Lime / hydrated lime | B47: kgs | C47: 903100 | D47: 1072800 | E47: 955500 | F47: 894200 | G47: 3825600 | H47: 11.31797486
A48: Fuel oil | B48: ltrs | C48: 95965 | D48: 81450 | E48: 154495 | F48: 185684 | G48: 517594 | H48: 1.53129336
A49: Gas | B49: cuf | G49: 0
A50: Other | G50: 0
A52: Summary | B52: Line/Unit | C52: Q1 | D52: Q2 | E52: Q3 | F52: Q4 | G52: Year Total | I52: Hrs in year
A53: Availability of waste combustion by line, hrs **** | B53: 1 | C53: 45688 | D53: 2130 | E53: 2016 | F53: 1994 | G53: =SUM(C53:F53) -> 51828 | H53: =+G53/$I$53 -> 5.900273224 | I53: 8784 | J53: Change this figure to 8784 in a leap year
B54: 2 | C54: 2092 | D54: 1947 | E54: 1954 | F54: 1997 | G54: 7990 | H54: =+G54/$I$53 -> 0.9096083789
B55: 3 | G55: 0 | H55: 0
B56: 4 | G56: 0 | H56: 0
B57: 5 | G57: =SUM(C57:F57) -> 0 | H57: 0
A58: Overall Availability, mean avg. of all lines, hrs | C58: =AVERAGE(C53:C54) -> 23890 | D58: =AVERAGE(D53:D54) -> 2038.5 | E58: 1985 | F58: 1995.5 | G58: =AVERAGE(G53:G54) -> 29909 | H58: 3.404940801
A59: Hours of turbine operations, hrs | B59: 1 | C59: 2125 | D59: 2126 | E59: 2183 | F59: 2106 | G59: 8540 | H59: 0.9722222222
A60: Hours of turbine operations, hrs | B60: 2 | G60: 0 | H60: 0
A61: Hours of heat / steam export | G61: 0 | H61: =IF(B61>0,G60/I53,"n/a") -> n/a
A62: Net Calorific Value of waste | B62: MJ/kg
A63: Abnormal Events | B63: qty. | G63: 0 | H63: =IF(G63>0,"yes","no") -> no
A64: Abnormal operation | B64: hours | G64: 0 | H64: =+(G64)/I53 -> 0
A65: Permit Breaches | B65: qty. | G65: 0 | H65: =IF(G65>0,"yes","no") -> no

Sheet Operational Summary
A1: =+'Cover Page'!$B$29 -> Annual Performance Report 2024 | E1: =+'Cover Page'!$B$33 -> Staffordshire Energy Recovery Facility
A3: Summary of Plant Operations and Maintenance during the reporting year | K3: Notes:
A5: The facility is in a two year outage strategy starting from year 2024 therefore there was no outage this year. However the following work has been carried out during breakdowns: Shredder replacement Combustion optimisation UPS batteries replacement Reagent lines new access platform Replacement of water treatment plant (ongoing) | K5: Include summary of key operational and/or maintenance activity undertaken in the year, such as any major component upgrades and/or replacements
A29: Summary of Residue Handling for the reporting year
A31: The plant has undergone rigorous testing to prove that the IBA is non-hazardous. The IBA is of a consistently high standard and there have been no failures in the last 24 samples. IBA is transported to Ling Hall in Rugby, where it is reprocessed into a number of different graded aggregates. Metals are further extracted from the process and recycled. In addition to Dioxins/Furans and dioxin-like PCB's, Total Organic Carbon, POPs and metals tested in IBA are Antimony, Cadmium, Thallium, Mercury, Lead, Chromium, Copper, Manganese, Nickel, Arsenic, Cobalt, Vanadium, Zinc and their compounds. APC residue is the fine particulate matter that is removed at the end of the gas cleansing process. It contains residues from the waste gas and the reactants used to treat the gas. APC is captured in the bag house filters in the plant before the gas is emitted and dispersed through the ERFs two 80m stacks. The APC from the Staffordshire ERF is sent to another Veolia facility for use in their treatment facility, Empire Works, or, for permanent storage at Minosus | K31: Include in here a summary of residue handling regimes and destinations
C53: 2025-01-31
A54: =+'Cover Page'!C39 -> 2024 | B54: Plant shut-downs
A55: Date | B55: Reason for shut-down | K55: Provide a very brief reason for plant shut-down e.g. "Shut-down prior to major outage"; "Emergency shut-down due to boiler tube leak" There is no need to include periods of hot-standby here (e.g. to clear feed chute hopper blockages). For clinical waste incinerators which require regular shut-downs for boiler cleaning, there is no need to record these here.
A56: 2024-02-06 | B56: A1 Shut down due to boiler tube leak
A57: 2024-03-11 | B57: A2 Shut down due to furnace tube leak
A58: 2024-03-23 | B58: A1 & A2 trip due to grid power outage
A59: 2024-04-12 | B59: A1 & A2 trip due to grid power outage
A60: 2024-04-29 | B60: A2 Shut down due to boiler tube leak
A61: 2024-05-29 | B61: A2 Shut down due to boiler tube leak
A62: 2024-06-10 | B62: A2 Shut down due to furnace tube leak
A63: 2024-07-13 | B63: A1 Shut down due to fabric filter screw repairs
A64: 2024-07-18 | B64: A1 Shut down due to boiler tube leak
A65: 2024-08-05 | B65: A2 Shut down due to boiler tube leak
A66: 2024-08-08 | B66: A1 Shut down due to AD blockage and feed chute water jacket leak
A67: 2024-08-19 | B67: A2 Shut down due to furnace tube leak
A68: 2024-08-25 | B68: A2 Shut down due to baghouse residue screw repairs
A69: 2024-10-29 | B69: A1 Shut down due to air heater cleaning and overhaul of SH spray valves
A70: 2024-11-04 | B70: A1 Shut down due to boiler water contamination
A71: 2024-11-10 | B71: A1 Shut down due to lime injection fault
A72: 2024-12-07 | B72: A1 & A2 Shut down due to site black out
A73: 2024-12-10 | B73: A2 Shut down due to boiler gasket door failure
A74: 2024-12-16 | B74: A2 Shut down due to screw residue no.1 repairs
A75: 2024-12-23 | B75: A2 Shut down due to furnace tube leak

Sheet Perf. Form 1
A1: =+'Cover Page'!C39 -> 2024 | B1: Annual Reporting Performance Form 1
A3: =+'Cover Page'!B31 -> Permit EPR/HP3431HK | F3: Operator: | G3: =+'Cover Page'!B37 -> Veolia ES Staffordshire Limited
A4: Facility: | B4: =+'Cover Page'!B33:I33 -> Staffordshire Energy Recovery Facility | F4: Form: | G4: Performance 1
A6: Reporting Period from: | D6: 2024-01-01 | F6: to: | G6: 2024-12-31
A8: =+A1 -> 2024 | B8: Annual Reporting of Waste Disposal and Recovery
A9: Waste Description | C9: Disposal Route(s) | E9: Disposal Tonnes | G9: Recovery Tonnes | I9: % / tonne of waste incinerated
A10: 1) Hazardous Wastes
A11: APC Residues | C11: D09/D12 | E11: ='Operational Data'!G34 -> 7502 | I11: =IF((E11+G11)>0,(E11+G11)/'Operational Data'!$G$21, "-") -> 0.02219454396
A12: IBA | I12: =IF((E12+G12)>0,(E12+G12)/'Operational Data'!$G$21, "-") -> -
A13: Interceptor waste | C13: D09/D12 | E13: ='Operational Data'!G37 -> 139 | I13: =IF((E13+G13)>0,(E13+G13)/'Operational Data'!$G$21, "-") -> 0.0004112292204
I14: =IF((E14+G14)>0,(E14+G14)/'Operational Data'!$G$21, "-") -> -
A15: Total Hazardous Waste | E15: =SUM(E11:F14) -> 7641 | G15: =SUM(G11:H14) -> 0 | I15: =IF((E15+G15)>0,(E15+G15)/'Operational Data'!$G$21, "-") -> 0.02260577318
A17: 2) Non-Hazardous Wastes
A18: IBA | C18: R05 | G18: ='Operational Data'!G35 -> 63008 | I18: =IF((E18+G18)>0,(E18+G18)/'Operational Data'!$G$21, "-") -> 0.1864081346
A19: Ferrous Metal | C19: R04 | G19: ='Operational Data'!G36 -> 5180 | I19: =IF((E19+G19)>0,(E19+G19)/'Operational Data'!$G$21, "-") -> 0.01532494505
A20: Process Water m3 | E20: 6105 | I20: =IF((E20+G20)>0,(E20+G20)/'Operational Data'!$G$21, "-") -> 0.01806154238
I21: =IF((E21+G21)>0,(E21+G21)/'Operational Data'!$G$21, "-") -> -
I22: =IF((E22+G22)>0,(E22+G22)/'Operational Data'!$G$21, "-") -> -
A23: Total Non-Hazardous Waste | E23: =SUM(E18:F22) -> 6105 | G23: =SUM(G18:H22) -> 68188 | I23: =IF((E23+G23)>0,(E23+G23)/'Operational Data'!$G$21, "-") -> 0.2197946221
A24: TOTAL WASTE | E24: =+E23+E15 -> 13746 | G24: =+G23+G15 -> 68188 | I24: =IF((E24+G24)>0,(E24+G24)/'Operational Data'!$G$21, "-") -> 0.2424003953
A26: Operator’s comments :
A31: =+A1 -> 2024 | B31: Annual Reporting of Water and Other Raw Material Usage
A32: Raw Material | E32: Usage | G32: Unit | H32: Specific Usage | J32: Unit
A33: Mains Water | E33: =+'Operational Data'!G42/1000 -> 36.057 | G33: m3 | H33: =IF(E33>0,E33/'Operational Data'!$G$21,"-") -> 0.0001066740432 | J33: m3/te
A34: Total Water | E34: =+'Operational Data'!G43+'Operational Data'!G42/1000 -> 36.057 | G34: m3 | H34: =IF(E34>0,E34/'Operational Data'!$G$21,"-") -> 0.0001066740432 | J34: m3/te
A35: Urea / Ammonia | E35: =+'Operational Data'!G44 -> 1182000 | G35: kg | H35: =IF(E35>0,E35/'Operational Data'!$G$21,"-") -> 3.496927615 | J35: kg/te
A36: Activated Carbon | E36: =+'Operational Data'!G46 -> 78300 | G36: kg | H36: =IF(E36>0,E36/'Operational Data'!$G$21,"-") -> 0.2316492659 | J36: kg/te
A37: Lime / hydrated lime / Sodium Bicarb. | E37: =+'Operational Data'!G47 -> 3825600 | G37: kg | H37: =IF(E37>0,E37/'Operational Data'!$G$21,"-") -> 11.31797486 | J37: kg/te
A39: Operator’s comments :
A43: =+A31 -> 2024 | B43: Annual Reporting of other performance indicators
A44: Parameter | C44: Results by Line
C45: A1 | D45: A2 | E45: A3 | F45: A4 | G45: A5 | I45: Turbine 1 | J45: Turbine 2
A46: Operating hours for the year, hours | C46: ='Operational Data'!G53 -> 51828 | D46: ='Operational Data'!G54 -> 7990 | I46: ='Operational Data'!G59 -> 8540
A47: Number of periods of abnormal operation, qty.
A48: Cumulative hours of abnormal operation for this year, hours
A50: Operator’s comments :
C53: 2025-01-31
A54: Signed: | B54: Matt Richardson | G54: Date: | H54: 2025-01-31

Sheet Energy Form 1
A1: =+'Cover Page'!C39 -> 2024 | B1: Annual Reporting of Energy Usage/Export
A3: =+'Cover Page'!B31 -> Permit EPR/HP3431HK | F3: Operator: | G3: =+'Cover Page'!B37 -> Veolia ES Staffordshire Limited
A5: Facility: | B5: =+'Cover Page'!B33:I33 -> Staffordshire Energy Recovery Facility | F5: Form: | G5: Energy 1
A7: Reporting Period from: | D7: =+'Perf. Form 1'!D6:E6 -> 2024-01-01 | F7: to: | G7: =+'Perf. Form 1'!G6:H6 -> 2024-12-31
A9: Energy Source | D9: Energy Usage | F9: Unit | G9: Specific Usage (KWh/tonne incinerated
A10: Electricity Produced | D10: =+'Operational Data'!G24 -> 214150 | F10: MWh | G10: =+'Operational Data'!H24 -> 633.5592629
A11: Electricity Imported | D11: =+'Operational Data'!G27 -> 346 | F11: MWh | G11: =+'Operational Data'!H27 -> 1.023635325
A12: Electricity Exported | D12: =+'Operational Data'!G25 -> 189623 | F12: MWh | G12: =+'Operational Data'!H25 -> 560.9965356
A13: Gas Oil | D13: ='Operational Data'!G47 -> 3825600 | F13: tonnes | G13: ='Operational Data'!H48 -> 1.53129336
A14: Steam/hot water exported | D14: =+'Operational Data'!G30 -> 0 | F14: GWh | G14: =+'Operational Data'!H30 -> -
A18: Operator’s comments :
A29: Signed: | B29: Matt Richardson | G29: Date: | H29: 2025-01-31
C53: 2025-01-31

Sheet Permit Compliance
A1: =+'Cover Page'!$B$29 -> Annual Performance Report 2024 | E1: =+'Cover Page'!$B$33 -> Staffordshire Energy Recovery Facility
A3: Summary of Permit Compliance
A5: Compliance with permit limits for continuously monitored pollutants
A7: The plant met its emission limits as shown in the table below:
A8: Substance | C8: Percentage time compliant during operationNote 1 | L8: Notes:
C9: Half-hourly limit | F9: Daily limit | L9: Note 1: Please report to 2 decimal places, i.e. xx.xx% Note 2: Please enter into this table any permit non-compliances that the EA has given a CCS score for. Please also enter any other non-compliances which you have notified to the EA (e.g. ELV exceedances) but which have not yet been assessed by the EA. There is no need to enter any notifications which were subsequently assessed by the EA not to be permit breaches. Note 3: Please enter information here (rather than just referencing the notifications that were sent to the EA) including where relevant the incineration line reference, pollutant and value of the measured result for any ELV exceedances.
A10: Particulates | C10: 1 | F10: 1
A11: Oxides of nitrogen | C11: 1 | F11: 1
A12: Sulphur dioxide | C12: 1 | F12: 1
A13: Carbon monoxide | C13: xx.xx % or 100.00% 95% of 10-min averages | F13: 1
A14: Total organic carbon | C14: 1 | F14: 1
A15: Hydrogen chloride | C15: 1 | F15: 1
A16: Ammonia | C16: xx.xx % | F16: 1
C17: xx.xx % | F17: xx.xx %
A19: Summary of non-compliances under the permit Note 2
A20: Date | B20: Summary of non-compliance Note 3 | D20: Reason | G20: Measures taken to prevent reoccurrence | H20: CCS score if applicable*
H21: Impact | I21: Root cause
A27: *If the Environment Agency (EA) has given a Compliance Classification Scheme (CCS) score due to a permit non-compliance it should be entered here (CCS4 = No impact; CCS3 = Minor impact; CCS2 = Significant impact; CCS1 = Major impact). If the EA has not yet assessed a non-compliance which you have notified to them, these columns should be left blank. Enter N/A if no score was given for the root cause.
A29: Summary of any complaints received and actions to taken to resolve them.
A30: Date | B30: Summary of complaint [including Line/Reference] | E30: Reason (including whether substantiated by the operator or the EA) | H30: Measures taken to prevent reoccurrence
C53: 2025-01-31

Sheet Improvements
A1: =+'Cover Page'!$B$29 -> Annual Performance Report 2024 | E1: =+'Cover Page'!$B$33 -> Staffordshire Energy Recovery Facility
A3: Summary of Plant Improvements
A5: Summary of any efficiency improvements that have been completed within the year.
A6: n/a
A16: Summary of any permit improvement conditions that have been completed within the year and the resulting environmental benefits.
A17: n/a
A27: Summary of any changes to the plant or operating techniques which required a variation to the permit and a summary of the resulting environmental impact.
A28: A permit variation has been submitted in order to increase the annual permitted waste tonnage throughput from 340000 per annum to 355000 per annum.
A38: Summary of any other improvements made to the plant or planned to be made and a summary of the resulting environmental benefits.
A39: n/a
C53: 2025-01-31

Sheet Public Liasion
A1: =+'Cover Page'!$B$29 -> Annual Performance Report 2024 | E1: =+'Cover Page'!$B$33 -> Staffordshire Energy Recovery Facility
A3: Details of Public & Stakeholder Liaison
A5: Summary of events held during the reporting year.
A6: Date | C6: Description
A7: Monthly | C7: Contract meeting with Staffordshire W2R partnership
A9: Quarterly | C9: W2R partners meetings
A16: List of events planned for next year
A17: Date | C17: Description
A18: Monthly | C18: Contract meeting with Staffordshire W2R partnership
A20: Quarterly | C20: W2R partners meetings
A29: If you wish to be involved in the public liaison programme, please contact _0203 567 6300_
C53: 2025-01-31

Sheet CO2 N2O
A1: =+'Cover Page'!$B$29 -> Annual Performance Report 2024 | C1: =+'Cover Page'!$B$33 -> Staffordshire Energy Recovery Facility
A3: Carbon dioxide emissions and biogenic content of waste inputs | F3: Notes:
A5: Carbon dioxide emissions (all types of plant)
B6: Annual mass of carbon dioxide released | C6: tonnes | D6: 420262
B7: Annual mass of carbon dioxide released per tonne of waste burned | C7: t CO2 / t waste | D7: =D6/'Operational Data'!G21 -> 1.243338235
B8: Annual mass of carbon dioxide released per MWh of energy exported | C8: t CO2 / MWh export | D8: =D6/'Operational Data'!G25 -> 2.216302875
B9: Description of how annual carbon dioxide mass emission has been calculated. See Note 1 | C9: CEM data | F9: Note 1: All permits require operators to continuously monitor CO2 to EN14181 and flow to BS EN 16911-2 (unless otherwise agreed in writing). Operators must therefore use the results from these instruments to calculate their annual CO2 emissions. Where an operator does not have a flow meter calibrated to BS EN 16911-2, the averaged flow measurement from that year's periodic monitoring can be used instead. If the plant does not have calibrated CO2 CEMS, a suitably justified emissions factor can be used.
A10: Nitrous oxide emissions (only plants which use ammonia or urea to abate NOx emissions)
B11: Annual mass emissions of nitrous oxide | C11: tonnes N2O | D11: 0.944
B12: Description of how annual nitrous oxide mass emission has been calculated See Note 2 | C12: CEM data | F12: Note 2: All permits require operators to continuously monitor N2O to EN14181 and flow to BS EN 16911-2, unless otherwise agreed in writing. Operators must therefore use the results from these instruments to calculate their annual N2O emissions. Where an operator does not have a flow meter calibrated to BS EN 16911-2, the averaged flow measurement from periodic monitoring can be used instead. If the plant does not have calibrated N2O CEMS, data from periodic monitoring or a suitably justified emissions factor can be used instead.
A13: Total annual carbon dioxide + nitrous oxide emissions. See Note 3. | C13: tonnes CO2e | D13: =(D11*265)+D6 -> 420512.16 | F13: Note 3: Total annual carbon dioxide and nitrous oxide emissions reported as carbon dioxide equivalent where 1 tonne nitrous oxide is equivalent to 265 tonnes carbon dioxide.
A14: Biogenic CO2 emissions (See Note 4) | F14: Note 4: Only plants combusting residual municipal waste, refuse derived fuel or solid recovered fuel need complete this section.
B15: Percentage of total carbon dioxide emissions arising from biogenic waste | C15: % | D15: 0.547
B16: No. of measurements undertaken | C16: Number | D16: 1
B17: Description of how percentage biogenic carbon dioxide emissions have been measured or calculated. See Note 5 | C17: C14 sampling | F17: Note 5: The results from C14 sampling should be used if this is carried out at the plant (either via an installed sampler or from spot samples). Otherwise, as an approximation (and in lieu of any more accurate metrics which may be developed in future), the measured or estimated biogenic fraction by net calorific value (see Note 6) can be assumed to be the same as the biogenic CO2 fraction of the total CO2 emissions from the plant.
A18: Biogenic fraction of waste feedstock (See Note 4)
B19: Yearly average biogenic percentage of the waste by net calorific value (NCV) | C19: %
B20: Description of how biogenic percentage (by NCV) has been calculated or estimated. See Note 6 | F20: Note 6: If C14 sampling is carried out at the plant, the methodology set out in the embedded document entitled "Renewable Energy Association Energy Content of Fuels - Description of Method" embedded below can be used to calculate the biogenic percentage by net calorific value. Otherwise, data from waste sampling or BIOMA software can be used; or if none of these are available, an estimated figure with justification or a figure assumed on the basis of up-to-date industry data can be used.
B21: Yearly average biogenic percentage of the waste by mass | C21: %
B22: If waste sampling undertaken, no. of samples used to ascertain average biogenic percentages above | C22: Number
B23: Description of how biogenic percentage (by mass) has been calculated or estimated. See Note 7 | F23: Note 7: Where available, data from waste sampling should be used; otherwise, an estimated figure with justification can be used, or a figure assumed on the basis of up-to-date industry data.
B25: Comments:
C53: 2025-01-31

Sheet Residue Quality
A1: =+'Cover Page'!$B$29 -> Annual Performance Report 2024 | E1: =+'Cover Page'!$B$33 -> Staffordshire Energy Recovery Facility
A3: Residue Quality Monitoring Requirements
A5: Summary of monitoring undertaken and compliance
A6: As per permit requirements
A13: Commentary on any specific events
A14: Date & Event | C14: Description
A27: Residue Quality Monitoring Results
A28: Parameter (unit) | C28: Limit* | D28: Normal Operation
D29: Bottom ash | F29: APC Residues
A30: Loss on Ignition (average %) | C30: <5%
A31: Total Organic Carbon (average %) | C31: <3% | D31: 1.05
A32: No. of Assessments Undertaken | C32: ---
A33: No. of Hazardous Results | C33: ---
A34: * The permit will specify a limit of either 5% loss on ignition or 3% total organic carbon. If both are measured anyway, please enter the results here, even where the limit does not apply.
A36: Comments :
C53: 2025-01-31

Sheet Water
A1: =+'Cover Page'!$B$29 -> Annual Performance Report 2024 | E1: =+'Cover Page'!$B$33 -> Staffordshire Energy Recovery Facility
A3: Emissions to Water
A5: Summary of monitoring undertaken and compliance
A6: As per Severn Trent discharge consent of trade effluent to public foul sewer
A8: No samples taken from Severn Trent within year 2024
A13: Commentary on any specific events
A14: Date & Event | C14: Description
A22: Emissions to Water / Sewer
A23: Parameter | D23: Monitoring Frequency | F23: Limit | G23: Target | H23: Max. | I23: Average
A24: pH | D24: Periodic | F24: 6 to 10
A25: COD | D25: Periodic | F25: 800
A26: Suspended solids | D26: Periodic | F26: 400
C53: 2025-01-31

Sheet Air (periodic)
A1: =+'Cover Page'!$B$29 -> Annual Performance Report 2024 | E1: =+'Cover Page'!$B$33 -> Staffordshire Energy Recovery Facility
A3: Emissions to Air (periodically monitored)
A5: Summary of monitoring undertaken, standards used and compliance | L5: Notes:
A6: As per permit requirements | L6: Template may require adjustment for any bespoke monitoring requirements of permit - please also check that all default ELV values, reference periods and the stated oxygen reference value match those for your plant, and edit if necessary!
A9: Results of emissions to air that are periodically monitored - oxygen reference 11%
A10: Substance | C10: Ref. Period | D10: Emission Limit Value | J10: Average | L10: User to add additional tables as necessary, depending on whether quarterly or bi-annual reporting is required for the compliance year
F11: A1(Q1&Q2) | G11: A2(Q1&Q2) | H11: A1(Q3&Q4) | I11: A2(Q3&Q4) | J11: A1 | K11: A2
A12: Hydrogen fluoride | C12: 30min x 3 | D12: 1 mg/m3 | F12: 0.087 | G12: 0.047 | H12: 0.023 | I12: 0.027 | J12: =AVERAGE(F12,H12) -> 0.055 | K12: =AVERAGE(G12,I12) -> 0.037
A13: Cd and Tl and their compounds | C13: 30min x 3 | D13: 0.02 mg/m3 | F13: 0.0011 | G13: 0.00113 | H13: 0.00107 | I13: 0.00107 | J13: =AVERAGE(F13,H13) -> 0.001085 | K13: =AVERAGE(G13,I13) -> 0.0011
A14: Hg and its compounds | C14: 30min x 3 | D14: 0.02 mg/m3 | F14: 0.00039 | G14: 0.00032 | H14: 0.00052 | I14: 0.00032 | J14: 0.000455 | K14: 0.00032
A15: Sb, As, Pb, Cr, Co, Cu, Mn, Ni, V and their compounds | C15: 30min x 3 | D15: 0.3 mg/m3 | F15: 0.0497 | G15: 0.032 | H15: 0.031 | I15: 0.0363 | J15: 0.04035 | K15: 0.03415
A16: Dioxins & Furans (I-TEQ) | C16: 6-8hrs | D16: 0.06 ng/m3 | F16: 0.0014 | G16: 0.0019 | H16: 0.003 | I16: 0.0014 | J16: 0.0022 | K16: 0.00165
A17: PCBs (WHO-TEQ Humans / Mammals) | C17: 6-8hrs | D17: None set ng/m3 | F17: 0.00033 | G17: 0.00041 | H17: 0.00041 | I17: 0.00026 | J17: 0.00037 | K17: 0.000335
A18: PCBs (WHO-TEQ Fish) | C18: 6-8hrs | D18: None set ng/m3 | F18: 8.7e-05 | G18: 9.7e-05 | H18: 2.4e-05 | I18: 1.7e-05 | J18: 5.55e-05 | K18: 5.7e-05
A19: PCBs (WHO-TEQ Birds) | C19: 6-8hrs | D19: None set ng/m3 | F19: 0.032 | G19: 0.035 | H19: 0.0016 | I19: 0.0024 | J19: 0.0168 | K19: 0.0187
A20: Dioxins & Furans (WHO-TEQ Humans / Mammals) | C20: 6-8hrs | D20: None set ng/m3 | F20: 0.0016 | G20: 0.0022 | H20: 0.0033 | I20: 0.0016 | J20: 0.00245 | K20: 0.0019
A21: Dioxins & Furans (WHO-TEQ Fish) | C21: 6-8hrs | D21: None set ng/m3 | F21: 0.0014 | G21: 0.0021 | H21: 0.0032 | I21: 0.0015 | J21: 0.0023 | K21: 0.0018
A22: Dioxins & Furans (WHO-TEQ Birds) | C22: 6-8hrs | D22: None set ng/m3 | F22: 0.003 | G22: 0.0043 | H22: 0.0068 | I22: 0.0021 | J22: 0.0049 | K22: 0.0032
A23: Polybrominated dibenzo-Dioxins & Furans | C23: 6-8hrs | D23: None set ng/m3 | F23: 0.01064 | G23: 0.01405 | H23: 0.00117 | I23: 0.0013 | J23: 0.005905 | K23: 0.007675
A24: Total PAH | C24: 6-8hrs | D24: None set µg/m3 | H24: 0.24 | I24: 0.16 | J24: 0.24 | K24: 0.16
A25: Anthanthrene | C25: 6-8hrs | D25: None set µg/m3 | H25: 0.0011 | I25: 0.0012 | J25: 0.0011 | K25: 0.0012
A26: Benzo(a)anthracene | C26: 6-8hrs | D26: None set µg/m3 | H26: 0.0012 | I26: 0.002 | J26: 0.0012 | K26: 0.002
A27: Benzo(a)pyrene | C27: 6-8hrs | D27: None set µg/m3 | H27: 0.0011 | I27: 0.0022 | J27: 0.0011 | K27: 0.0022
A28: Benzo(b)fluoranthene | C28: 6-8hrs | D28: None set µg/m3 | H28: 0.0011 | I28: 0.0028 | J28: 0.0011 | K28: 0.0028
A29: Benzo(b)naptho(2,1-d) thiophene | C29: 6-8hrs | D29: None set µg/m3 | H29: 0.0011 | I29: 0.0012 | J29: 0.0011 | K29: 0.0012
A30: Benzo(c)phenanthrene | C30: 6-8hrs | D30: None set µg/m3 | H30: 0.0011 | I30: 0.0012 | J30: 0.0011 | K30: 0.0012
A31: Benzo(ghi)perylene | C31: 6-8hrs | D31: None set µg/m3 | H31: 0.0011 | I31: 0.038 | J31: 0.0011 | K31: 0.038
A32: Benzo(k)fluoranthene | C32: 6-8hrs | D32: None set µg/m3 | H32: 0.0011 | I32: 0.0012 | J32: 0.0011 | K32: 0.0012
A33: Cholanthrene | C33: 6-8hrs | D33: None set µg/m3 | H33: 0.0011 | I33: 0.0012 | J33: 0.0011 | K33: 0.0012
A34: Chrysene | C34: 6-8hrs | D34: None set µg/m3 | H34: 0.002 | I34: 0.0028 | J34: 0.002 | K34: 0.0028
A35: Cyclopenta(cd)pyrene | C35: 6-8hrs | D35: None set µg/m3 | H35: 0.0011 | I35: 0.0012 | J35: 0.0011 | K35: 0.0012
A36: Dibenzo(ai)pyrene | C36: 6-8hrs | D36: None set µg/m3 | H36: 0.0011 | I36: 0.0012 | J36: 0.0011 | K36: 0.0012
A37: Dibenzo(ah)anthracene | C37: 6-8hrs | D37: None set µg/m3 | H37: 0.0011 | I37: 0.0012 | J37: 0.0011 | K37: 0.0012
A38: Fluoranthene | C38: 6-8hrs | D38: None set µg/m3 | H38: 0.027 | I38: 0.03 | J38: 0.027 | K38: 0.03
A39: Indeno(123-cd) pyrene | C39: 6-8hrs | D39: None set µg/m3 | H39: 0.0011 | I39: 0.0077 | J39: 0.0011 | K39: 0.0077
A40: Naphthalene | C40: 6-8hrs | D40: None set µg/m3 | H40: 0.19 | I40: 0.068 | J40: 0.19 | K40: 0.068
A41: Comments :
A42: PAH periodic emissions monitoring annual requirement, conducted in Q3/Q4
C53: 2025-01-31

Sheet Air (CEMS)
A1: =+'Cover Page'!$B$29 -> Annual Performance Report 2024 | I1: =+'Cover Page'!$B$33 -> Staffordshire Energy Recovery Facility
A3: Emissions to Air (continuously monitored)
N4: Notes:
A5: Summary of monitoring undertaken, standards used and compliance | N5: Template may require adjustment for any bespoke monitoring requirements of permit
N6: Please check that all default ELV values match those for your plant and edit if necessary!
N7: Report to 1 decimal place
A11: Results of emissions to air that are continuously monitored (maximum and average values for each line) - oxygen reference 11%
A12: Substance | B12: Reference Period | C12: Emission Limit Value | D12: A1 | F12: A2 | H12: A3 | J12: A4 | L12: A5
D13: Max. | E13: Avg. | F13: Max. | G13: Avg. | H13: Max. | I13: Avg. | J13: Max. | K13: Avg. | L13: Max. | M13: Avg.
A14: Oxides of nitrogen | B14: Daily mean | C14: 180 mg/m3 | D14: =NOx!O19 -> 169.2 | E14: =NOx!N19 -> 146.775 | F14: =NOx!O34 -> 171.3 | G14: =NOx!N34 -> 152.0083333
B15: ½ hourly mean | C15: 400 mg/m3 | D15: =NOx!M19 -> 327.3 | E15: =NOx!L19 -> 146.9416667 | F15: =NOx!M34 -> 315.8 | G15: =NOx!L34 -> 152.15
A16: Particulates | B16: Daily mean | C16: 5 mg/m3 | D16: =Particulates!O19 -> 0.8 | E16: =Particulates!N19 -> 0.375 | F16: =Particulates!O34 -> 0.5 | G16: =Particulates!N34 -> 0.4
B17: ½ hourly mean | C17: 30 mg/m3 | D17: =Particulates!M19 -> 3.4 | E17: =Particulates!L19 -> 0.4333333333 | F17: =Particulates!M34 -> 4.5 | G17: =Particulates!L34 -> 0.4333333333
A18: Total Organic Carbon | B18: Daily mean | C18: 10 mg/m3 | D18: =TOC!O19 -> 0.9 | E18: =TOC!N19 -> 0.3416666667 | F18: =TOC!O34 -> 1.1 | G18: =TOC!N34 -> 0.1916666667
B19: ½ hourly mean | C19: 20 mg/m3 | D19: =TOC!M19 -> 11.4 | E19: =TOC!L19 -> 0.4083333333 | F19: =TOC!M34 -> 18.2 | G19: =TOC!L34 -> 0.2333333333
A20: Hydrogen chloride | B20: Daily mean | C20: 8 mg/m3 | D20: =HCl!O19 -> 6 | E20: =HCl!N19 -> 4.3 | F20: =HCl!O34 -> 7.5 | G20: =HCl!N34 -> 4.783333333
B21: ½ hourly mean | C21: 60 mg/m3 | D21: =HCl!M19 -> 38.9 | E21: =HCl!L19 -> 4.333333333 | F21: =HCl!M34 -> 54.7 | G21: =HCl!L34 -> 4.825
A22: Sulphur dioxide | B22: Daily mean | C22: 40 mg/m3 | D22: ='SO2'!O19 -> 29 | E22: ='SO2'!N19 -> 16.6 | F22: ='SO2'!O34 -> 33.9 | G22: ='SO2'!N34 -> 18.11666667
B23: ½ hourly mean | C23: 200 mg/m3 | D23: ='SO2'!M19 -> 78.4 | E23: ='SO2'!L19 -> 16.63333333 | F23: ='SO2'!M34 -> 91.9 | G23: ='SO2'!L34 -> 18.18333333
A24: Carbon monoxide | B24: Daily mean | C24: 50 mg/m3 | D24: ='CO 95% 10 min'!Q22 -> 9.1 | E24: ='CO 95% 10 min'!P22 -> 2.516666667 | F24: ='CO 95% 10 min'!Q37 -> 10.1 | G24: ='CO 95% 10 min'!P37 -> 3.141666667
B25: ½ hourly mean * | C25: 100 mg/m3 *
B26: 95%ile 10-min avg * | C26: 150 mg/m3 * | D26: ='CO 95% 10 min'!M22 -> 7.008333333 | E26: ='CO 95% 10 min'!N22 -> 2.583333333 | F26: ='CO 95% 10 min'!M37 -> 7.491666667 | G26: ='CO 95% 10 min'!N37 -> 3.208333333
A27: Ammonia | B27: Daily mean | C27: 15 mg/m3 | D27: ='NH3'!O19 -> 8.1 | E27: ='NH3'!N19 -> 3.833333333 | F27: ='NH3'!O34 -> 8.2 | G27: ='NH3'!N34 -> 3.625
A28: * = delete as appropriate, depending on whether your plant has half-hourly or 10-min CO ELVs
A29: Comments :
C53: 2025-01-31

Sheet HCl
A1: =+'Cover Page'!$B$29 -> Annual Performance Report 2024 | E1: =+'Cover Page'!$B$33 -> Staffordshire Energy Recovery Facility
A3: Monitoring of Hydrogen Chloride emissions | D3: Whole Installation | G3: See Notes in Cell Q3 | J3: =+A3 -> Monitoring of Hydrogen Chloride emissions | N3: Per Combustion Line | Q3: Notes:
Q4: User to add logic to complete Whole installation, Table A5:G18. From the data in Per Combustion Line, Table J6:O79, subject to No. of lines installed
A5: =+'Cover Page'!C39 -> 2024 | B5: 1/2 Hourly Reference Periods | E5: Daily Reference Periods
A6: mg/Nm3 | B6: 1/2 hourly HCl ELV | C6: Monthly mean of half-hourly averages | D6: Highest half- hourly average | E6: Daily HCl ELV | F6: Monthly mean of daily averages | G6: Highest daily average | J6: =+A5 -> 2024 | K6: mg/Nm3 | L6: Monthly mean of half-hourly averages | M6: Highest half- hourly average | N6: Monthly mean of daily averages | O6: Highest daily average
A7: Jan | B7: 60 | C7: =AVERAGE(L7,L22) -> 4.55 | D7: =MAX(M7,M22) -> 10.9 | E7: 8 | F7: =AVERAGE(N7,N22) -> 4.45 | G7: =MAX(O7,O22) -> 6.7 | J7: A1 | K7: Jan | L7: 3.7 | M7: 7.8 | N7: 3.6 | O7: 4.8
A8: Feb | B8: 60 | C8: =AVERAGE(L8,L23) -> 3.7 | D8: =MAX(M8,M23) -> 8.8 | E8: 8 | F8: =AVERAGE(N8,N23) -> 3.65 | G8: =MAX(O8,O23) -> 4.8 | K8: Feb | L8: 3.5 | M8: 8.8 | N8: 3.5 | O8: 4.2
A9: Mar | B9: 60 | C9: 3.35 | D9: 9.8 | E9: 8 | F9: 3.25 | G9: 4.5 | K9: Mar | L9: 3 | M9: 8.4 | N9: 2.9 | O9: 4 | Q9: Whole Installation table A5:G18:
A10: Apr | B10: 60 | C10: 3.8 | D10: 10 | E10: 8 | F10: 3.75 | G10: 5.1 | K10: Apr | L10: 4.4 | M10: 10 | N10: 4.3 | O10: 5.1 | Q10: Mean: for 1/2 hourly and daily periods calculate mean of values across all operational combustion lines for the month
A11: May | B11: 60 | C11: 3.95 | D11: 23.3 | E11: 8 | F11: 3.95 | G11: 6.1 | K11: May | L11: 4 | M11: 16.7 | N11: 4 | O11: 5.2
A12: Jun | B12: 60 | C12: 4.85 | D12: 18.4 | E12: 8 | F12: 4.8 | G12: 5.3 | K12: Jun | L12: 4.8 | M12: 18.4 | N12: 4.8 | O12: 5.3
A13: Jul | B13: 60 | C13: 5.25 | D13: 12.7 | E13: 8 | F13: 5.2 | G13: 6.4 | K13: Jul | L13: 4.8 | M13: 10.7 | N13: 4.8 | O13: 5.6 | Q13: Maximum: for 1/2 hourly and daily periods use the highest value across all operational combustion lines for the month
A14: Aug | B14: 60 | C14: 5.2 | D14: 17.3 | E14: 8 | F14: 5.2 | G14: 6.4 | K14: Aug | L14: 5 | M14: 17.3 | N14: 5 | O14: 6
A15: Sep | B15: 60 | C15: 5.05 | D15: 25.9 | E15: 8 | F15: 5.05 | G15: 6.3 | K15: Sep | L15: 4.8 | M15: 7.7 | N15: 4.8 | O15: 5.4
A16: Oct | B16: 60 | C16: 5.45 | D16: 16.2 | E16: 8 | F16: 5.45 | G16: 7.5 | K16: Oct | L16: 4.9 | M16: 9.5 | N16: 4.9 | O16: 5.7
A17: Nov | B17: 60 | C17: 4.9 | D17: 38.9 | E17: 8 | F17: 4.85 | G17: 5.9 | K17: Nov | L17: 4.6 | M17: 38.9 | N17: 4.5 | O17: 5.3
A18: Dec | B18: 60 | C18: 4.9 | D18: 54.7 | E18: 8 | F18: 4.9 | G18: 6.4 | K18: Dec | L18: 4.5 | M18: 9.4 | N18: 4.5 | O18: 5.2
K19: Annual | L19: =AVERAGE(L7:L18) -> 4.333333333 | M19: =MAX(M7:M18) -> 38.9 | N19: =AVERAGE(N7:N18) -> 4.3 | O19: =MAX(O7:O18) -> 6
J21: =+A5 -> 2024 | K21: mg/Nm3 | L21: Monthly mean of half-hourly averages | M21: Highest half- hourly average | N21: Monthly mean of daily averages | O21: Highest daily average
J22: A2 | K22: Jan | L22: 5.4 | M22: 10.9 | N22: 5.3 | O22: 6.7
K23: Feb | L23: 3.9 | M23: 8.3 | N23: 3.8 | O23: 4.8
K24: Mar | L24: 3.7 | M24: 9.8 | N24: 3.6 | O24: 4.5
K25: Apr | L25: 3.2 | M25: 8 | N25: 3.2 | O25: 3.6
K26: May | L26: 3.9 | M26: 23.3 | N26: 3.9 | O26: 6.1
K27: Jun | L27: 4.9 | M27: 11.9 | N27: 4.8 | O27: 5.3
K28: Jul | L28: 5.7 | M28: 12.7 | N28: 5.6 | O28: 6.4
K29: Aug | L29: 5.4 | M29: 14.1 | N29: 5.4 | O29: 6.4
K30: Sep | L30: 5.3 | M30: 25.9 | N30: 5.3 | O30: 6.3
K31: Oct | L31: 6 | M31: 16.2 | N31: 6 | O31: 7.5
K32: Nov | L32: 5.2 | M32: 24.3 | N32: 5.2 | O32: 5.9
K33: Dec | L33: 5.3 | M33: 54.7 | N33: 5.3 | O33: 6.4
K34: Annual | L34: =AVERAGE(L22:L33) -> 4.825 | M34: =MAX(M22:M33) -> 54.7 | N34: =AVERAGE(N22:N33) -> 4.783333333 | O34: =MAX(O22:O33) -> 7.5
J36: =+A5 -> 2024 | K36: mg/Nm3 | L36: Monthly mean of half-hourly averages | M36: Highest half- hourly average | N36: Monthly mean of daily averages | O36: Highest daily average
J37: A3 | K37: Jan
K38: Feb
K39: Mar
K40: Apr
K41: May
K42: Jun
K43: Jul
K44: Aug
K45: Sep
K46: Oct
K47: Nov
A48: Comments : | K48: Dec
K49: Annual | L49: =AVERAGE(L37:L48) ->  | M49: =MAX(M37:M48) -> 0 | N49: =AVERAGE(N37:N48) ->  | O49: =MAX(O37:O48) -> 0
J51: =+A5 -> 2024 | K51: mg/Nm3 | L51: Monthly mean of half-hourly averages | M51: Highest half- hourly average | N51: Monthly mean of daily averages | O51: Highest daily average
J52: A4 | K52: Jan
C53: 2025-01-31 | K53: Feb
K54: Mar
K55: Apr
K56: May
K57: Jun
K58: Jul
K59: Aug
K60: Sep
K61: Oct
K62: Nov
K63: Dec
K64: Annual | L64: =AVERAGE(L52:L63) ->  | M64: =MAX(M52:M63) -> 0 | N64: =AVERAGE(N52:N63) ->  | O64: =MAX(O52:O63) -> 0
J66: =+A5 -> 2024 | K66: mg/Nm3 | L66: Monthly mean of half-hourly averages | M66: Highest half- hourly average | N66: Monthly mean of daily averages | O66: Highest daily average
J67: A5 | K67: Jan
K68: Feb
K69: Mar
K70: Apr
K71: May
K72: Jun
K73: Jul
K74: Aug
K75: Sep
K76: Oct
K77: Nov
K78: Dec
K79: Annual | L79: =AVERAGE(L67:L78) ->  | M79: =MAX(M67:M78) -> 0 | N79: =AVERAGE(N67:N78) ->  | O79: =MAX(O67:O78) -> 0

Sheet SO2
A1: =+'Cover Page'!$B$29 -> Annual Performance Report 2024 | E1: =+'Cover Page'!$B$33 -> Staffordshire Energy Recovery Facility
A3: Monitoring of Sulphur dioxide emissions | D3: Whole Installation | G3: See Notes in Cell Q3 | J3: =+A3 -> Monitoring of Sulphur dioxide emissions | N3: Per Combustion Line | Q3: Notes:
Q4: User to add logic to complete Whole installation, Table A5:G18. From the data in Per Combustion Line, Table J6:O79, subject to No. of lines installed
A5: =+'Cover Page'!C39 -> 2024 | B5: 1/2 Hourly Reference Periods | E5: Daily Reference Periods
A6: mg/Nm3 | B6: 1/2 hourly SO2 ELV | C6: Monthly mean of half-hourly averages | D6: Highest half- hourly average | E6: Daily SO2 ELV | F6: Monthly mean of daily averages | G6: Highest daily average | J6: =+A5 -> 2024 | K6: mg/Nm3 | L6: Monthly mean of half-hourly averages | M6: Highest half- hourly average | N6: Monthly mean of daily averages | O6: Highest daily average
A7: Jan | B7: 200 | C7: =AVERAGE(L7,L22) -> 14.7 | D7: =MAX(M7,M22) -> 91.9 | E7: 40 | F7: =AVERAGE(N7,N22) -> 14.65 | G7: =MAX(O7,O22) -> 23.8 | J7: A1 | K7: Jan | L7: 13.6 | M7: 50.2 | N7: 13.6 | O7: 18.6
A8: Feb | B8: 200 | C8: =AVERAGE(L8,L23) -> 16.65 | D8: =MAX(M8,M23) -> 50.1 | E8: 40 | F8: =AVERAGE(N8,N23) -> 16.75 | G8: =MAX(O8,O23) -> 22.7 | K8: Feb | L8: 16.8 | M8: 50.1 | N8: 16.9 | O8: 22.1
A9: Mar | B9: 200 | C9: 17.55 | D9: 60.3 | E9: 40 | F9: 17.6 | G9: 27.5 | K9: Mar | L9: 18.2 | M9: 60.3 | N9: 18.3 | O9: 27.5 | Q9: Whole Installation table A5:G18:
A10: Apr | B10: 200 | C10: 17.7 | D10: 82.9 | E10: 40 | F10: 17.7 | G10: 27.8 | K10: Apr | L10: 19.3 | M10: 62.4 | N10: 19.4 | O10: 27.8 | Q10: Mean: for 1/2 hourly and daily periods calculate mean of values across all operational combustion lines for the month
A11: May | B11: 200 | C11: 17.4 | D11: 66.4 | E11: 40 | F11: 17.3 | G11: 28 | K11: May | L11: 16.9 | M11: 66.4 | N11: 16.9 | O11: 28
A12: Jun | B12: 200 | C12: 17.15 | D12: 72.8 | E12: 40 | F12: 17.1 | G12: 27.2 | K12: Jun | L12: 16.9 | M12: 72.8 | N12: 16.8 | O12: 27.2
A13: Jul | B13: 200 | C13: 18.4 | D13: 55.5 | E13: 40 | F13: 18.25 | G13: 27.7 | K13: Jul | L13: 17.6 | M13: 55.5 | N13: 17.3 | O13: 24.6 | Q13: Maximum: for 1/2 hourly and daily periods use the highest value across all operational combustion lines for the month
A14: Aug | B14: 200 | C14: 18.45 | D14: 65.1 | E14: 40 | F14: 18.2 | G14: 32.5 | K14: Aug | L14: 16.4 | M14: 61.4 | N14: 16.3 | O14: 27.1
A15: Sep | B15: 200 | C15: 17.8 | D15: 75.6 | E15: 40 | F15: 17.9 | G15: 30.3 | K15: Sep | L15: 15.5 | M15: 47.7 | N15: 15.5 | O15: 27.9
A16: Oct | B16: 200 | C16: 15.6 | D16: 54.8 | E16: 40 | F16: 15.5 | G16: 30.2 | K16: Oct | L16: 12.9 | M16: 45 | N16: 12.8 | O16: 23.1
A17: Nov | B17: 200 | C17: 19.1 | D17: 88.6 | E17: 40 | F17: 19.2 | G17: 31 | K17: Nov | L17: 18.5 | M17: 78.4 | N17: 18.6 | O17: 29
A18: Dec | B18: 200 | C18: 18.4 | D18: 86.1 | E18: 40 | F18: 18.15 | G18: 33.9 | K18: Dec | L18: 17 | M18: 55.5 | N18: 16.8 | O18: 25.4
K19: Annual | L19: =AVERAGE(L7:L18) -> 16.63333333 | M19: =MAX(M7:M18) -> 78.4 | N19: =AVERAGE(N7:N18) -> 16.6 | O19: =MAX(O7:O18) -> 29
J21: =+A5 -> 2024 | K21: mg/Nm3 | L21: Monthly mean of half-hourly averages | M21: Highest half- hourly average | N21: Monthly mean of daily averages | O21: Highest daily average
J22: A2 | K22: Jan | L22: 15.8 | M22: 91.9 | N22: 15.7 | O22: 23.8
K23: Feb | L23: 16.5 | M23: 42.8 | N23: 16.6 | O23: 22.7
K24: Mar | L24: 16.9 | M24: 55.5 | N24: 16.9 | O24: 24.6
K25: Apr | L25: 16.1 | M25: 82.9 | N25: 16 | O25: 20.9
K26: May | L26: 17.9 | M26: 66.2 | N26: 17.7 | O26: 26
K27: Jun | L27: 17.4 | M27: 41.5 | N27: 17.4 | O27: 25.2
K28: Jul | L28: 19.2 | M28: 50.5 | N28: 19.2 | O28: 27.7
K29: Aug | L29: 20.5 | M29: 65.1 | N29: 20.1 | O29: 32.5
K30: Sep | L30: 20.1 | M30: 75.6 | N30: 20.3 | O30: 30.3
K31: Oct | L31: 18.3 | M31: 54.8 | N31: 18.2 | O31: 30.2
K32: Nov | L32: 19.7 | M32: 88.6 | N32: 19.8 | O32: 31
K33: Dec | L33: 19.8 | M33: 86.1 | N33: 19.5 | O33: 33.9
K34: Annual | L34: =AVERAGE(L22:L33) -> 18.18333333 | M34: =MAX(M22:M33) -> 91.9 | N34: =AVERAGE(N22:N33) -> 18.11666667 | O34: =MAX(O22:O33) -> 33.9
J36: =+A5 -> 2024 | K36: mg/Nm3 | L36: Monthly mean of half-hourly averages | M36: Highest half- hourly average | N36: Monthly mean of daily averages | O36: Highest daily average
J37: A3 | K37: Jan
K38: Feb
K39: Mar
K40: Apr
K41: May
K42: Jun
K43: Jul
K44: Aug
K45: Sep
K46: Oct
K47: Nov
A48: Comments : | K48: Dec
K49: Annual | L49: =AVERAGE(L37:L48) ->  | M49: =MAX(M37:M48) -> 0 | N49: =AVERAGE(N37:N48) ->  | O49: =MAX(O37:O48) -> 0
J51: =+A5 -> 2024 | K51: mg/Nm3 | L51: Monthly mean of half-hourly averages | M51: Highest half- hourly average | N51: Monthly mean of daily averages | O51: Highest daily average
J52: A4 | K52: Jan
C53: 2025-01-31 | K53: Feb
K54: Mar
K55: Apr
K56: May
K57: Jun
K58: Jul
K59: Aug
K60: Sep
K61: Oct
K62: Nov
K63: Dec
K64: Annual | L64: =AVERAGE(L52:L63) ->  | M64: =MAX(M52:M63) -> 0 | N64: =AVERAGE(N52:N63) ->  | O64: =MAX(O52:O63) -> 0
J66: =+A5 -> 2024 | K66: mg/Nm3 | L66: Monthly mean of half-hourly averages | M66: Highest half- hourly average | N66: Monthly mean of daily averages | O66: Highest daily average
J67: A5 | K67: Jan
K68: Feb
K69: Mar
K70: Apr
K71: May
K72: Jun
K73: Jul
K74: Aug
K75: Sep
K76: Oct
K77: Nov
K78: Dec
K79: Annual | L79: =AVERAGE(L67:L78) ->  | M79: =MAX(M67:M78) -> 0 | N79: =AVERAGE(N67:N78) ->  | O79: =MAX(O67:O78) -> 0

Sheet NOx
A1: =+'Cover Page'!$B$29 -> Annual Performance Report 2024 | E1: =+'Cover Page'!$B$33 -> Staffordshire Energy Recovery Facility
A3: Monitoring of Oxides of Nitrogen emissions | D3: Whole Installation | G3: See Notes in Cell Q3 | J3: =+A3 -> Monitoring of Oxides of Nitrogen emissions | N3: Per Combustion Line | Q3: Notes:
Q4: User to add logic to complete Whole installation, Table A5:G18. From the data in Per Combustion Line, Table J6:O79, subject to No. of lines installed
A5: =+'Cover Page'!C39 -> 2024 | B5: 1/2 Hourly Reference Periods | E5: Daily Reference Periods
A6: mg/Nm3 | B6: 1/2 hourly NOx ELV | C6: Monthly mean of half-hourly averages | D6: Highest half- hourly average | E6: Daily NOx ELV | F6: Monthly mean of daily averages | G6: Highest daily average | J6: =+A5 -> 2024 | K6: mg/Nm3 | L6: Monthly mean of half-hourly averages | M6: Highest half- hourly average | N6: Monthly mean of daily averages | O6: Highest daily average
A7: Jan | B7: 400 | C7: =AVERAGE(L7,L22) -> 151.8 | D7: =MAX(M7,M22) -> 315.1 | E7: 180 | F7: =AVERAGE(N7,N22) -> 151.75 | G7: =MAX(O7,O22) -> 166 | J7: A1 | K7: Jan | L7: 149.1 | M7: 288.2 | N7: 149.1 | O7: 166
A8: Feb | B8: 400 | C8: =AVERAGE(L8,L23) -> 149.95 | D8: =MAX(M8,M23) -> 300.3 | E8: 180 | F8: =AVERAGE(N8,N23) -> 150.05 | G8: =MAX(O8,O23) -> 163.5 | K8: Feb | L8: 147.9 | M8: 272.6 | N8: 147.8 | O8: 163.5
A9: Mar | B9: 400 | C9: 149.65 | D9: 303.7 | E9: 180 | F9: 149.75 | G9: 160 | K9: Mar | L9: 146.2 | M9: 298.1 | N9: 146.5 | O9: 156 | Q9: Whole Installation table A5:G18:
A10: Apr | B10: 400 | C10: 147.15 | D10: 296.4 | E10: 180 | F10: 147.35 | G10: 171.3 | K10: Apr | L10: 142.1 | M10: 289.8 | N10: 142.1 | O10: 167.1 | Q10: Mean: for 1/2 hourly and daily periods calculate mean of values across all operational combustion lines for the month
A11: May | B11: 400 | C11: 153.9 | D11: 310.8 | E11: 180 | F11: 153.7 | G11: 166 | K11: May | L11: 150.2 | M11: 293 | N11: 150.2 | O11: 164.2
A12: Jun | B12: 400 | C12: 155.4 | D12: 308.7 | E12: 180 | F12: 155.25 | G12: 169.2 | K12: Jun | L12: 154.6 | M12: 298 | N12: 154.5 | O12: 169.2
A13: Jul | B13: 400 | C13: 153.05 | D13: 271.9 | E13: 180 | F13: 152.9 | G13: 167.6 | K13: Jul | L13: 153.5 | M13: 271.9 | N13: 153.3 | O13: 167.6 | Q13: Maximum: for 1/2 hourly and daily periods use the highest value across all operational combustion lines for the month
A14: Aug | B14: 400 | C14: 152.2 | D14: 279.8 | E14: 180 | F14: 151.45 | G14: 167.6 | K14: Aug | L14: 152.6 | M14: 252.1 | N14: 151.9 | O14: 165.1
A15: Sep | B15: 400 | C15: 151.5 | D15: 315.8 | E15: 180 | F15: 151.6 | G15: 166.9 | K15: Sep | L15: 144.8 | M15: 295 | N15: 145 | O15: 163.1
A16: Oct | B16: 400 | C16: 144.2 | D16: 327.3 | E16: 180 | F16: 144.2 | G16: 161 | K16: Oct | L16: 136.8 | M16: 327.3 | N16: 136.8 | O16: 145.4
A17: Nov | B17: 400 | C17: 141.85 | D17: 293.8 | E17: 180 | F17: 141.05 | G17: 155.2 | K17: Nov | L17: 141.3 | M17: 293.8 | N17: 140.2 | O17: 155.2
A18: Dec | B18: 400 | C18: 143.9 | D18: 312.7 | E18: 180 | F18: 143.65 | G18: 156.1 | K18: Dec | L18: 144.2 | M18: 283.5 | N18: 143.9 | O18: 156.1
K19: Annual | L19: =AVERAGE(L7:L18) -> 146.9416667 | M19: =MAX(M7:M18) -> 327.3 | N19: =AVERAGE(N7:N18) -> 146.775 | O19: =MAX(O7:O18) -> 169.2
J21: =+A5 -> 2024 | K21: mg/Nm3 | L21: Monthly mean of half-hourly averages | M21: Highest half- hourly average | N21: Monthly mean of daily averages | O21: Highest daily average
J22: A2 | K22: Jan | L22: 154.5 | M22: 315.1 | N22: 154.4 | O22: 161
K23: Feb | L23: 152 | M23: 300.3 | N23: 152.3 | O23: 159
K24: Mar | L24: 153.1 | M24: 303.7 | N24: 153 | O24: 160
K25: Apr | L25: 152.2 | M25: 296.4 | N25: 152.6 | O25: 171.3
K26: May | L26: 157.6 | M26: 310.8 | N26: 157.2 | O26: 166
K27: Jun | L27: 156.2 | M27: 308.7 | N27: 156 | O27: 164.6
K28: Jul | L28: 152.6 | M28: 233.3 | N28: 152.5 | O28: 164.6
K29: Aug | L29: 151.8 | M29: 279.8 | N29: 151 | O29: 167.6
K30: Sep | L30: 158.2 | M30: 315.8 | N30: 158.2 | O30: 166.9
K31: Oct | L31: 151.6 | M31: 309.1 | N31: 151.6 | O31: 161
K32: Nov | L32: 142.4 | M32: 284.8 | N32: 141.9 | O32: 151.9
K33: Dec | L33: 143.6 | M33: 312.7 | N33: 143.4 | O33: 152.1
K34: Annual | L34: =AVERAGE(L22:L33) -> 152.15 | M34: =MAX(M22:M33) -> 315.8 | N34: =AVERAGE(N22:N33) -> 152.0083333 | O34: =MAX(O22:O33) -> 171.3
J36: =+A5 -> 2024 | K36: mg/Nm3 | L36: Monthly mean of half-hourly averages | M36: Highest half- hourly average | N36: Monthly mean of daily averages | O36: Highest daily average
J37: A3 | K37: Jan
K38: Feb
K39: Mar
K40: Apr
K41: May
K42: Jun
K43: Jul
K44: Aug
K45: Sep
K46: Oct
K47: Nov
A48: Comments : | K48: Dec
K49: Annual | L49: =AVERAGE(L37:L48) ->  | M49: =MAX(M37:M48) -> 0 | N49: =AVERAGE(N37:N48) ->  | O49: =MAX(O37:O48) -> 0
J51: =+A5 -> 2024 | K51: mg/Nm3 | L51: Monthly mean of half-hourly averages | M51: Highest half- hourly average | N51: Monthly mean of daily averages | O51: Highest daily average
J52: A4 | K52: Jan
C53: 2025-01-31 | K53: Feb
K54: Mar
K55: Apr
K56: May
K57: Jun
K58: Jul
K59: Aug
K60: Sep
K61: Oct
K62: Nov
K63: Dec
K64: Annual | L64: =AVERAGE(L52:L63) ->  | M64: =MAX(M52:M63) -> 0 | N64: =AVERAGE(N52:N63) ->  | O64: =MAX(O52:O63) -> 0
J66: =+A5 -> 2024 | K66: mg/Nm3 | L66: Monthly mean of half-hourly averages | M66: Highest half- hourly average | N66: Monthly mean of daily averages | O66: Highest daily average
J67: A5 | K67: Jan
K68: Feb
K69: Mar
K70: Apr
K71: May
K72: Jun
K73: Jul
K74: Aug
K75: Sep
K76: Oct
K77: Nov
K78: Dec
K79: Annual | L79: =AVERAGE(L67:L78) ->  | M79: =MAX(M67:M78) -> 0 | N79: =AVERAGE(N67:N78) ->  | O79: =MAX(O67:O78) -> 0

Sheet TOC
A1: =+'Cover Page'!$B$29 -> Annual Performance Report 2024 | E1: =+'Cover Page'!$B$33 -> Staffordshire Energy Recovery Facility
A3: Monitoring of Total organic carbon emissions | D3: Whole Installation | G3: See Notes in Cell Q3 | J3: =+A3 -> Monitoring of Total organic carbon emissions | N3: Per Combustion Line | Q3: Notes:
Q4: User to add logic to complete Whole installation, Table A5:G18. From the data in Per Combustion Line, Table J6:O79, subject to No. of lines installed
A5: =+'Cover Page'!C39 -> 2024 | B5: 1/2 Hourly Reference Periods | E5: Daily Reference Periods
A6: mg/Nm3 | B6: 1/2 hourly TOC ELV | C6: Monthly mean of half-hourly averages | D6: Highest half- hourly average | E6: Daily TOC ELV | F6: Monthly mean of daily averages | G6: Highest daily average | J6: =+A5 -> 2024 | K6: mg/Nm3 | L6: Monthly mean of half-hourly averages | M6: Highest half- hourly average | N6: Monthly mean of daily averages | O6: Highest daily average
A7: Jan | B7: 20 | C7: =AVERAGE(L7,L22) -> 0.2 | D7: =MAX(M7,M22) -> 2.3 | E7: 10 | F7: =AVERAGE(N7,N22) -> 0.2 | G7: =MAX(O7,O22) -> 0.4 | J7: A1 | K7: Jan | L7: 0.2 | M7: 2.3 | N7: 0.2 | O7: 0.3
A8: Feb | B8: 20 | C8: =AVERAGE(L8,L23) -> 0.4 | D8: =MAX(M8,M23) -> 12.1 | E8: 10 | F8: =AVERAGE(N8,N23) -> 0.35 | G8: =MAX(O8,O23) -> 1.1 | K8: Feb | L8: 0.4 | M8: 3.9 | N8: 0.3 | O8: 0.9
A9: Mar | B9: 20 | C9: 0.5 | D9: 3.5 | E9: 10 | F9: 0.45 | G9: 0.7 | K9: Mar | L9: 0.5 | M9: 3.5 | N9: 0.4 | O9: 0.7 | Q9: Whole Installation table A5:G18:
A10: Apr | B10: 20 | C10: 0.45 | D10: 18.2 | E10: 10 | F10: 0.35 | G10: 0.9 | K10: Apr | L10: 0.4 | M10: 4.8 | N10: 0.3 | O10: 0.9 | Q10: Mean: for 1/2 hourly and daily periods calculate mean of values across all operational combustion lines for the month
A11: May | B11: 20 | C11: 0.35 | D11: 5 | E11: 10 | F11: 0.35 | G11: 0.9 | K11: May | L11: 0.3 | M11: 3.7 | N11: 0.3 | O11: 0.7
A12: Jun | B12: 20 | C12: 0.3 | D12: 6.3 | E12: 10 | F12: 0.25 | G12: 0.5 | K12: Jun | L12: 0.3 | M12: 6.3 | N12: 0.2 | O12: 0.4
A13: Jul | B13: 20 | C13: 0.25 | D13: 11.4 | E13: 10 | F13: 0.25 | G13: 0.7 | K13: Jul | L13: 0.4 | M13: 11.4 | N13: 0.4 | O13: 0.7 | Q13: Maximum: for 1/2 hourly and daily periods use the highest value across all operational combustion lines for the month
A14: Aug | B14: 20 | C14: 0.3 | D14: 4 | E14: 10 | F14: 0.2 | G14: 0.6 | K14: Aug | L14: 0.5 | M14: 4 | N14: 0.4 | O14: 0.6
A15: Sep | B15: 20 | C15: 0.3 | D15: 5.9 | E15: 10 | F15: 0.2 | G15: 0.6 | K15: Sep | L15: 0.5 | M15: 3.4 | N15: 0.4 | O15: 0.6
A16: Oct | B16: 20 | C16: 0.2 | D16: 1.9 | E16: 10 | F16: 0.15 | G16: 0.5 | K16: Oct | L16: 0.4 | M16: 1.9 | N16: 0.3 | O16: 0.5
A17: Nov | B17: 20 | C17: 0.35 | D17: 9.5 | E17: 10 | F17: 0.25 | G17: 0.8 | K17: Nov | L17: 0.6 | M17: 5.9 | N17: 0.5 | O17: 0.8
A18: Dec | B18: 20 | C18: 0.25 | D18: 10.2 | E18: 10 | F18: 0.2 | G18: 0.6 | K18: Dec | L18: 0.4 | M18: 4.9 | N18: 0.4 | O18: 0.6
K19: Annual | L19: =AVERAGE(L7:L18) -> 0.4083333333 | M19: =MAX(M7:M18) -> 11.4 | N19: =AVERAGE(N7:N18) -> 0.3416666667 | O19: =MAX(O7:O18) -> 0.9
J21: =+A5 -> 2024 | K21: mg/Nm3 | L21: Monthly mean of half-hourly averages | M21: Highest half- hourly average | N21: Monthly mean of daily averages | O21: Highest daily average
J22: A2 | K22: Jan | L22: 0.2 | M22: 1.9 | N22: 0.2 | O22: 0.4
K23: Feb | L23: 0.4 | M23: 12.1 | N23: 0.4 | O23: 1.1
K24: Mar | L24: 0.5 | M24: 3.4 | N24: 0.5 | O24: 0.7
K25: Apr | L25: 0.5 | M25: 18.2 | N25: 0.4 | O25: 0.9
K26: May | L26: 0.4 | M26: 5 | N26: 0.4 | O26: 0.9
K27: Jun | L27: 0.3 | M27: 2.7 | N27: 0.3 | O27: 0.5
K28: Jul | L28: 0.1 | M28: 3.5 | N28: 0.1 | O28: 0.7
K29: Aug | L29: 0.1 | M29: 3.5 | N29: 0 | O29: 0.3
K30: Sep | L30: 0.1 | M30: 5.9 | N30: 0 | O30: 0.4
K31: Oct | L31: 0 | M31: 1.2 | N31: 0 | O31: 0.1
K32: Nov | L32: 0.1 | M32: 9.5 | N32: 0 | O32: 0.2
K33: Dec | L33: 0.1 | M33: 10.2 | N33: 0 | O33: 0.6
K34: Annual | L34: =AVERAGE(L22:L33) -> 0.2333333333 | M34: =MAX(M22:M33) -> 18.2 | N34: =AVERAGE(N22:N33) -> 0.1916666667 | O34: =MAX(O22:O33) -> 1.1
J36: =+A5 -> 2024 | K36: mg/Nm3 | L36: Monthly mean of half-hourly averages | M36: Highest half- hourly average | N36: Monthly mean of daily averages | O36: Highest daily average
J37: A3 | K37: Jan
K38: Feb
K39: Mar
K40: Apr
K41: May
K42: Jun
K43: Jul
K44: Aug
K45: Sep
K46: Oct
K47: Nov
A48: Comments : | K48: Dec
K49: Annual | L49: =AVERAGE(L37:L48) ->  | M49: =MAX(M37:M48) -> 0 | N49: =AVERAGE(N37:N48) ->  | O49: =MAX(O37:O48) -> 0
J51: =+A5 -> 2024 | K51: mg/Nm3 | L51: Monthly mean of half-hourly averages | M51: Highest half- hourly average | N51: Monthly mean of daily averages | O51: Highest daily average
J52: A4 | K52: Jan
C53: 2025-01-31 | K53: Feb
K54: Mar
K55: Apr
K56: May
K57: Jun
K58: Jul
K59: Aug
K60: Sep
K61: Oct
K62: Nov
K63: Dec
K64: Annual | L64: =AVERAGE(L52:L63) ->  | M64: =MAX(M52:M63) -> 0 | N64: =AVERAGE(N52:N63) ->  | O64: =MAX(O52:O63) -> 0
J66: =+A5 -> 2024 | K66: mg/Nm3 | L66: Monthly mean of half-hourly averages | M66: Highest half- hourly average | N66: Monthly mean of daily averages | O66: Highest daily average
J67: A5 | K67: Jan
K68: Feb
K69: Mar
K70: Apr
K71: May
K72: Jun
K73: Jul
K74: Aug
K75: Sep
K76: Oct
K77: Nov
K78: Dec
K79: Annual | L79: =AVERAGE(L67:L78) ->  | M79: =MAX(M67:M78) -> 0 | N79: =AVERAGE(N67:N78) ->  | O79: =MAX(O67:O78) -> 0

Sheet Particulates
A1: =+'Cover Page'!$B$29 -> Annual Performance Report 2024 | E1: =+'Cover Page'!$B$33 -> Staffordshire Energy Recovery Facility
A3: Monitoring of Particulate matter emissions | D3: Whole Installation | G3: See Notes in Cell Q3 | J3: =+A3 -> Monitoring of Particulate matter emissions | N3: Per Combustion Line | Q3: Notes:
A5: =+'Cover Page'!C39 -> 2024 | B5: 1/2 Hourly Reference Periods | E5: Daily Reference Periods | Q5: User to add logic to complete Whole installation, Table A5:G18. From the data in Per Combustion Line, Table J6:O79, subject to No. of lines installed
A6: mg/Nm3 | B6: 1/2 hourly PM ELV | C6: Monthly mean of half-hourly averages | D6: Highest half- hourly average | E6: Daily PM ELV | F6: Monthly mean of daily averages | G6: Highest daily average | J6: =+A5 -> 2024 | K6: mg/Nm3 | L6: Monthly mean of half-hourly averages | M6: Highest half- hourly average | N6: Monthly mean of daily averages | O6: Highest daily average
A7: Jan | B7: 30 | C7: =AVERAGE(L7,L22) -> 0.45 | D7: =MAX(M7,M22) -> 1.1 | E7: 5 | F7: =AVERAGE(N7,N22) -> 0.4 | G7: =MAX(O7,O22) -> 0.8 | J7: A1 | K7: Jan | L7: 0.4 | M7: 1.1 | N7: 0.4 | O7: 0.8
A8: Feb | B8: 30 | C8: =AVERAGE(L8,L23) -> 0.3 | D8: =MAX(M8,M23) -> 4.5 | E8: 5 | F8: =AVERAGE(N8,N23) -> 0.3 | G8: =MAX(O8,O23) -> 0.7 | K8: Feb | L8: 0.2 | M8: 0.9 | N8: 0.2 | O8: 0.7
A9: Mar | B9: 30 | C9: 0.55 | D9: 1.2 | E9: 5 | F9: 0.5 | G9: 0.7 | K9: Mar | L9: 0.7 | M9: 1.2 | N9: 0.6 | O9: 0.7
A10: Apr | B10: 30 | C10: 0.55 | D10: 1 | E10: 5 | F10: 0.5 | G10: 0.7 | K10: Apr | L10: 0.7 | M10: 1 | N10: 0.6 | O10: 0.7 | Q10: Whole Installation table A5:G18:
A11: May | B11: 30 | C11: 0.55 | D11: 0.9 | E11: 5 | F11: 0.55 | G11: 0.7 | K11: May | L11: 0.7 | M11: 0.9 | N11: 0.7 | O11: 0.7 | Q11: Mean: for 1/2 hourly and daily periods calculate mean of values across all operational combustion lines for the month
A12: Jun | B12: 30 | C12: 0.55 | D12: 0.8 | E12: 5 | F12: 0.55 | G12: 0.7 | K12: Jun | L12: 0.7 | M12: 0.8 | N12: 0.7 | O12: 0.7
A13: Jul | B13: 30 | C13: 0.35 | D13: 0.5 | E13: 5 | F13: 0.3 | G13: 0.5 | K13: Jul | L13: 0.3 | M13: 0.3 | N13: 0.2 | O13: 0.3
A14: Aug | B14: 30 | C14: 0.35 | D14: 0.5 | E14: 5 | F14: 0.3 | G14: 0.5 | K14: Aug | L14: 0.3 | M14: 0.4 | N14: 0.2 | O14: 0.3 | Q14: Maximum: for 1/2 hourly and daily periods use the highest value across all operational combustion lines for the month
A15: Sep | B15: 30 | C15: 0.35 | D15: 3.4 | E15: 5 | F15: 0.3 | G15: 0.5 | K15: Sep | L15: 0.3 | M15: 3.4 | N15: 0.2 | O15: 0.3
A16: Oct | B16: 30 | C16: 0.4 | D16: 0.6 | E16: 5 | F16: 0.35 | G16: 0.5 | K16: Oct | L16: 0.3 | M16: 0.4 | N16: 0.3 | O16: 0.3
A17: Nov | B17: 30 | C17: 0.4 | D17: 0.7 | E17: 5 | F17: 0.3 | G17: 0.5 | K17: Nov | L17: 0.3 | M17: 0.4 | N17: 0.2 | O17: 0.3
A18: Dec | B18: 30 | C18: 0.4 | D18: 0.6 | E18: 5 | F18: 0.3 | G18: 0.5 | K18: Dec | L18: 0.3 | M18: 0.5 | N18: 0.2 | O18: 0.3
K19: Annual | L19: =AVERAGE(L7:L18) -> 0.4333333333 | M19: =MAX(M7:M18) -> 3.4 | N19: =AVERAGE(N7:N18) -> 0.375 | O19: =MAX(O7:O18) -> 0.8
J21: =+A5 -> 2024 | K21: mg/Nm3 | L21: Monthly mean of half-hourly averages | M21: Highest half- hourly average | N21: Monthly mean of daily averages | O21: Highest daily average
J22: A2 | K22: Jan | L22: 0.5 | M22: 0.6 | N22: 0.4 | O22: 0.5
K23: Feb | L23: 0.4 | M23: 4.5 | N23: 0.4 | O23: 0.5
K24: Mar | L24: 0.4 | M24: 0.9 | N24: 0.4 | O24: 0.5
K25: Apr | L25: 0.4 | M25: 0.5 | N25: 0.4 | O25: 0.4
K26: May | L26: 0.4 | M26: 0.5 | N26: 0.4 | O26: 0.4
K27: Jun | L27: 0.4 | M27: 0.5 | N27: 0.4 | O27: 0.5
K28: Jul | L28: 0.4 | M28: 0.5 | N28: 0.4 | O28: 0.5
K29: Aug | L29: 0.4 | M29: 0.5 | N29: 0.4 | O29: 0.5
K30: Sep | L30: 0.4 | M30: 3.2 | N30: 0.4 | O30: 0.5
K31: Oct | L31: 0.5 | M31: 0.6 | N31: 0.4 | O31: 0.5
K32: Nov | L32: 0.5 | M32: 0.7 | N32: 0.4 | O32: 0.5
K33: Dec | L33: 0.5 | M33: 0.6 | N33: 0.4 | O33: 0.5
K34: Annual | L34: =AVERAGE(L22:L33) -> 0.4333333333 | M34: =MAX(M22:M33) -> 4.5 | N34: =AVERAGE(N22:N33) -> 0.4 | O34: =MAX(O22:O33) -> 0.5
J36: =+A5 -> 2024 | K36: mg/Nm3 | L36: Monthly mean of half-hourly averages | M36: Highest half- hourly average | N36: Monthly mean of daily averages | O36: Highest daily average
J37: A3 | K37: Jan
K38: Feb
K39: Mar
K40: Apr
K41: May
K42: Jun
K43: Jul
K44: Aug
K45: Sep
K46: Oct
K47: Nov
A48: Comments : | K48: Dec
K49: Annual | L49: =AVERAGE(L37:L48) ->  | M49: =MAX(M37:M48) -> 0 | N49: =AVERAGE(N37:N48) ->  | O49: =MAX(O37:O48) -> 0
J51: =+A5 -> 2024 | K51: mg/Nm3 | L51: Monthly mean of half-hourly averages | M51: Highest half- hourly average | N51: Monthly mean of daily averages | O51: Highest daily average
J52: A4 | K52: Jan
C53: 2025-01-31 | K53: Feb
K54: Mar
K55: Apr
K56: May
K57: Jun
K58: Jul
K59: Aug
K60: Sep
K61: Oct
K62: Nov
K63: Dec
K64: Annual | L64: =AVERAGE(L52:L63) ->  | M64: =MAX(M52:M63) -> 0 | N64: =AVERAGE(N52:N63) ->  | O64: =MAX(O52:O63) -> 0
J66: =+A5 -> 2024 | K66: mg/Nm3 | L66: Monthly mean of half-hourly averages | M66: Highest half- hourly average | N66: Monthly mean of daily averages | O66: Highest daily average
J67: A5 | K67: Jan
K68: Feb
K69: Mar
K70: Apr
K71: May
K72: Jun
K73: Jul
K74: Aug
K75: Sep
K76: Oct
K77: Nov
K78: Dec
K79: Annual | L79: =AVERAGE(L67:L78) ->  | M79: =MAX(M67:M78) -> 0 | N79: =AVERAGE(N67:N78) ->  | O79: =MAX(O67:O78) -> 0

Sheet CO 0.5 hourly (hidden)
A1: =+'Cover Page'!$B$29 -> Annual Performance Report 2024 | E1: =+'Cover Page'!$B$33 -> Staffordshire Energy Recovery Facility
A3: Monitoring of Carbon Monoxide (half hourly) | D3: Whole Installation | G3: See Notes in Cell Q3 | J3: =+A3 -> Monitoring of Carbon Monoxide (half hourly) | N3: Per Combustion Line | Q3: Notes:
A5: Please complete this tab for your plant if you have 1/2 hourly CO ELVs; otherwise, leave it blank and complete the CO 95% 10 min tab
Q7: User to add logic to complete Whole installation, Table A5:G18. From the data in Per Combustion Line, Table J6:O79, subject to No. of lines installed
A8: =+'Cover Page'!C39 -> 2024 | B8: 1/2 Hourly Reference Periods | E8: Daily Reference Periods
A9: mg/Nm3 | B9: 1/2 hourly CO ELV | C9: Monthly mean of half-hourly averages | D9: Highest half- hourly average | E9: Daily CO ELV | F9: Monthly mean of daily averages | G9: Highest daily average | J9: =+A8 -> 2024 | K9: mg/Nm3 | L9: Monthly mean of half-hourly averages | M9: Highest half- hourly average | N9: Monthly mean of daily averages | O9: Highest daily average
A10: Jan | B10: 100 | E10: 50 | J10: A1 | K10: Jan
A11: Feb | B11: =+B10 -> 100 | E11: =+E10 -> 50 | K11: Feb
A12: Mar | B12: =+B11 -> 100 | E12: =+E11 -> 50 | K12: Mar | Q12: Whole Installation table A5:G18:
A13: Apr | B13: 100 | E13: 50 | K13: Apr | Q13: Mean: for 1/2 hourly and daily periods calculate mean of values across all operational combustion lines for the month
A14: May | B14: 100 | E14: 50 | K14: May
A15: Jun | B15: 100 | E15: 50 | K15: Jun
A16: Jul | B16: 100 | E16: 50 | K16: Jul | Q16: Maximum: for 1/2 hourly and daily periods use the highest value across all operational combustion lines for the month
A17: Aug | B17: 100 | E17: 50 | K17: Aug
A18: Sep | B18: 100 | E18: 50 | K18: Sep
A19: Oct | B19: 100 | E19: 50 | K19: Oct
A20: Nov | B20: 100 | E20: 50 | K20: Nov
A21: Dec | B21: 100 | E21: 50 | K21: Dec
K22: Annual | L22: =AVERAGE(L10:L21) ->  | M22: =MAX(M10:M21) -> 0 | N22: =AVERAGE(N10:N21) ->  | O22: =MAX(O10:O21) -> 0
J24: =+A8 -> 2024 | K24: mg/Nm3 | L24: Monthly mean of half-hourly averages | M24: Highest half- hourly average | N24: Monthly mean of daily averages | O24: Highest daily average
J25: A2 | K25: Jan
K26: Feb
K27: Mar
K28: Apr
K29: May
K30: Jun
K31: Jul
K32: Aug
K33: Sep
K34: Oct
K35: Nov
K36: Dec
K37: Annual | L37: =AVERAGE(L25:L36) ->  | M37: =MAX(M25:M36) -> 0 | N37: =AVERAGE(N25:N36) ->  | O37: =MAX(O25:O36) -> 0
J39: =+A8 -> 2024 | K39: mg/Nm3 | L39: Monthly mean of half-hourly averages | M39: Highest half- hourly average | N39: Monthly mean of daily averages | O39: Highest daily average
J40: A3 | K40: Jan
K41: Feb
K42: Mar
K43: Apr
K44: May
K45: Jun
K46: Jul
K47: Aug
K48: Sep
K49: Oct
K50: Nov
A51: Comments : | K51: Dec
K52: Annual | L52: =AVERAGE(L40:L51) ->  | M52: =MAX(M40:M51) -> 0 | N52: =AVERAGE(N40:N51) ->  | O52: =MAX(O40:O51) -> 0
J54: =+A8 -> 2024 | K54: mg/Nm3 | L54: Monthly mean of half-hourly averages | M54: Highest half- hourly average | N54: Monthly mean of daily averages | O54: Highest daily average
J55: A4 | K55: Jan
K56: Feb
K57: Mar
K58: Apr
K59: May
K60: Jun
K61: Jul
K62: Aug
K63: Sep
K64: Oct
K65: Nov
K66: Dec
K67: Annual | L67: =AVERAGE(L55:L66) ->  | M67: =MAX(M55:M66) -> 0 | N67: =AVERAGE(N55:N66) ->  | O67: =MAX(O55:O66) -> 0
J69: =+A8 -> 2024 | K69: mg/Nm3 | L69: Monthly mean of half-hourly averages | M69: Highest half- hourly average | N69: Monthly mean of daily averages | O69: Highest daily average
J70: A5 | K70: Jan
K71: Feb
K72: Mar
K73: Apr
K74: May
K75: Jun
K76: Jul
K77: Aug
K78: Sep
K79: Oct
K80: Nov
K81: Dec
K82: Annual | L82: =AVERAGE(L70:L81) ->  | M82: =MAX(M70:M81) -> 0 | N82: =AVERAGE(N70:N81) ->  | O82: =MAX(O70:O81) -> 0

Sheet CO 95% 10 min
A1: =+'Cover Page'!$B$29 -> Annual Performance Report 2024 | E1: =+'Cover Page'!$B$33 -> Staffordshire Energy Recovery Facility
A3: Monitoring of Carbon Monoxide (10-minute avg) | E3: Whole Installation | H3: See Notes in Cell S3 | J3: =+A3 -> Monitoring of Carbon Monoxide (10-minute avg) | O3: Per Combustion Line | Q3: Notes: | S3: Notes:
A5: Please complete this tab for your plant if you have 10-minute average CO ELVs; otherwise, leave it blank and complete the CO 0.5 hourly tab
S7: User to add logic to complete Whole installation, Table A5:H18. From the data in Per Combustion Line, Table K6:Q79, subject to No. of lines installed
A8: =+'Cover Page'!C39 -> 2024 | B8: 10-minute Reference Periods | F8: Daily Reference Periods
A9: mg/Nm3 | B9: 95%ile 10-min avg CO ELV | C9: Highest daily 95%ile 10-min average | D9: Monthly mean of 10-min averages | E9: Highest 10-min average | F9: Daily CO ELV | G9: Monthly mean of daily averages | H9: Highest daily average | K9: =+A8 -> 2024 | L9: mg/Nm3 | M9: Highest daily 95%ile 10-min average | N9: Monthly mean of 10-min averages | O9: Highest 10-min average | P9: Monthly mean of daily averages | Q9: Highest daily average
A10: Jan | B10: 150 | C10: =MAX(M10,M25) -> 5.5 | D10: =AVERAGE(N10,N25) -> 3.3 | E10: =MAX(O10,O25) -> 218.9 | F10: 50 | G10: =AVERAGE(P10,P25) -> 3.2 | H10: =MAX(Q10,Q25) -> 5.5 | K10: A1 | L10: Jan | M10: 5 | N10: 2.9 | O10: 218.9 | P10: 2.8 | Q10: 4.3
A11: Feb | B11: =+B10 -> 150 | C11: =MAX(M11,M26) -> 10.6 | D11: =AVERAGE(N11,N26) -> 3.2 | E11: =MAX(O11,O26) -> 222.8 | F11: =+F10 -> 50 | G11: =AVERAGE(P11,P26) -> 3.15 | H11: =MAX(Q11,Q26) -> 5.6 | L11: Feb | M11: 10.6 | N11: 3.1 | O11: 222.8 | P11: 3.1 | Q11: 5.6
A12: Mar | B12: =+B11 -> 150 | C12: 9.4 | D12: 3.55 | E12: 445.5 | F12: =+F11 -> 50 | G12: 3.5 | H12: 9 | L12: Mar | M12: 7.5 | N12: 3.3 | O12: 432.7 | P12: 3.2 | Q12: 9 | S12: Whole Installation table A5:H18:
A13: Apr | B13: 150 | C13: 8.3 | D13: 3.2 | E13: 507.7 | F13: 50 | G13: 3.15 | H13: 8.2 | L13: Apr | M13: 8.3 | N13: 2.8 | O13: 159 | P13: 2.7 | Q13: 4.7 | S13: Mean: for 10-min and daily periods use average of all operational combustion lines.
A14: May | B14: 150 | C14: 8 | D14: 2.8 | E14: 294.7 | F14: 50 | G14: 2.8 | H14: 5.2 | L14: May | M14: 6.3 | N14: 2.6 | O14: 237.2 | P14: 2.6 | Q14: 5.2
A15: Jun | B15: 150 | C15: 4.2 | D15: 3 | E15: 430.7 | F15: 50 | G15: 2.9 | H15: 10.1 | L15: Jun | M15: 3.9 | N15: 2.8 | O15: 390.7 | P15: 2.7 | Q15: 6.3
A16: Jul | B16: 150 | C16: 7.4 | D16: 2 | E16: 337.4 | F16: 50 | G16: 1.85 | H16: 4.6 | L16: Jul | M16: 3.3 | N16: 2 | O16: 337.4 | P16: 1.8 | Q16: 3.5 | S16: Maximum: for 10-min and daily periods use the highest of all operational combustion lines in any month.
A17: Aug | B17: 150 | C17: 6.3 | D17: 1.9 | E17: 420.5 | F17: 50 | G17: 1.8 | H17: 4.5 | L17: Aug | M17: 5.1 | N17: 1.8 | O17: 131 | P17: 1.7 | Q17: 2.8
A18: Sep | B18: 150 | C18: 11.9 | D18: 2.5 | E18: 529.3 | F18: 50 | G18: 2.4 | H18: 5.9 | L18: Sep | M18: 11.9 | N18: 2.2 | O18: 174.1 | P18: 2.1 | Q18: 4.1
A19: Oct | B19: 150 | C19: 11.2 | D19: 2.9 | E19: 281.1 | F19: 50 | G19: 2.85 | H19: 5.6 | L19: Oct | M19: 4.6 | N19: 2.5 | O19: 141.4 | P19: 2.5 | Q19: 3.8
A20: Nov | B20: 150 | C20: 13.3 | D20: 3.55 | E20: 262.2 | F20: 50 | G20: 3.55 | H20: 9.1 | L20: Nov | M20: 13.3 | N20: 3 | O20: 262.2 | P20: 3 | Q20: 9.1
A21: Dec | B21: 150 | C21: 5.9 | D21: 2.85 | E21: 344.5 | F21: 50 | G21: 2.8 | H21: 7.1 | L21: Dec | M21: 4.3 | N21: 2 | O21: 266 | P21: 2 | Q21: 3.3
L22: Annual | M22: =AVERAGE(M10:M21) -> 7.008333333 | N22: =AVERAGE(N10:N21) -> 2.583333333 | O22: =MAX(O10:O21) -> 432.7 | P22: =AVERAGE(P10:P21) -> 2.516666667 | Q22: =MAX(Q10:Q21) -> 9.1
K24: =+A8 -> 2024 | L24: mg/Nm3 | M24: Highest daily 95%ile 10-min average | N24: Monthly mean of 10-min averages | O24: Highest 10-min average | P24: Monthly mean of daily averages | Q24: Highest daily average
K25: A2 | L25: Jan | M25: 5.5 | N25: 3.7 | O25: 198.5 | P25: 3.6 | Q25: 5.5
L26: Feb | M26: 7.8 | N26: 3.3 | O26: 207.7 | P26: 3.2 | Q26: 5
L27: Mar | M27: 9.4 | N27: 3.8 | O27: 445.5 | P27: 3.8 | Q27: 7.1
L28: Apr | M28: 4.5 | N28: 3.6 | O28: 507.7 | P28: 3.6 | Q28: 8.2
L29: May | M29: 8 | N29: 3 | O29: 294.7 | P29: 3 | Q29: 5.2
L30: Jun | M30: 4.2 | N30: 3.2 | O30: 430.7 | P30: 3.1 | Q30: 10.1
L31: Jul | M31: 7.4 | N31: 2 | O31: 271.4 | P31: 1.9 | Q31: 4.6
L32: Aug | M32: 6.3 | N32: 2 | O32: 420.5 | P32: 1.9 | Q32: 4.5
L33: Sep | M33: 8.6 | N33: 2.8 | O33: 529.3 | P33: 2.7 | Q33: 5.9
L34: Oct | M34: 11.2 | N34: 3.3 | O34: 281.1 | P34: 3.2 | Q34: 5.6
L35: Nov | M35: 11.1 | N35: 4.1 | O35: 192.7 | P35: 4.1 | Q35: 6.9
L36: Dec | M36: 5.9 | N36: 3.7 | O36: 344.5 | P36: 3.6 | Q36: 7.1
L37: Annual | M37: =AVERAGE(M25:M36) -> 7.491666667 | N37: =AVERAGE(N25:N36) -> 3.208333333 | O37: =MAX(O25:O36) -> 529.3 | P37: =AVERAGE(P25:P36) -> 3.141666667 | Q37: =MAX(Q25:Q36) -> 10.1
K39: =+A8 -> 2024 | L39: mg/Nm3 | M39: Highest daily 95%ile 10-min average | N39: Monthly mean of 10-min averages | O39: Highest 10-min average | P39: Monthly mean of daily averages | Q39: Highest daily average
K40: A3 | L40: Jan
L41: Feb
L42: Mar
L43: Apr
L44: May
L45: Jun
L46: Jul
L47: Aug
L48: Sep
L49: Oct
L50: Nov
A51: Comments : | L51: Dec
A52: Environment Agency explanatory note: The 10-minute average ELV is based on the “95th percentile”. In this case this means that 95% of the 10 minute averages in the relevant 24-hour period (i.e. 137) must be below 150 mg/Nm3, and 5% (i.e. 7) are allowed to be any value above 150 mg/Nm3. Whilst we expect operators to minimise CO emissions at all times, it is perfectly acceptable for the value of the maximum 10-minute average to be above 150 mg/Nm3, provided the 95th percentile ELV has been met for that period. | L52: Annual | M52: =AVERAGE(M40:M51) ->  | O52: =MAX(O40:O51) -> 0 | P52: =AVERAGE(P40:P51) ->  | Q52: =MAX(Q40:Q51) -> 0
K54: =+A8 -> 2024 | L54: mg/Nm3 | M54: Highest daily 95%ile 10-min average | N54: Monthly mean of 10-min averages | O54: Highest 10-min average | P54: Monthly mean of daily averages | Q54: Highest daily average
K55: A4 | L55: Jan
L56: Feb
L57: Mar
L58: Apr
L59: May
L60: Jun
L61: Jul
L62: Aug
L63: Sep
L64: Oct
L65: Nov
L66: Dec
L67: Annual | M67: =AVERAGE(M55:M66) ->  | O67: =MAX(O55:O66) -> 0 | P67: =AVERAGE(P55:P66) ->  | Q67: =MAX(Q55:Q66) -> 0
K69: =+A8 -> 2024 | L69: mg/Nm3 | M69: 95%ile 10-min avg maximum | N69: Monthly CO 10-min avg mean | O69: 10-min avg maximum | P69: Monthly daily mean | Q69: Monthly daily maximum
K70: A5 | L70: Jan
L71: Feb
L72: Mar
L73: Apr
L74: May
L75: Jun
L76: Jul
L77: Aug
L78: Sep
L79: Oct
L80: Nov
L81: Dec
L82: Annual | M82: =AVERAGE(M70:M81) ->  | O82: =MAX(O70:O81) -> 0 | P82: =AVERAGE(P70:P81) ->  | Q82: =MAX(Q70:Q81) -> 0

Sheet NH3
A1: =+'Cover Page'!$B$29 -> Annual Performance Report 2024 | E1: =+'Cover Page'!$B$33 -> Staffordshire Energy Recovery Facility
A3: Monitoring of Ammnonia emissions | D3: Whole Installation | G3: See Notes in Cell Q3 | J3: =+A3 -> Monitoring of Ammnonia emissions | N3: Per Combustion Line | Q3: Notes:
Q4: User to add logic to complete Whole installation, Table A5:G18. From the data in Per Combustion Line, Table J6:O79, subject to No. of lines installed
A5: =+'Cover Page'!C39 -> 2024 | B5: 1/2 Hourly Reference Periods | E5: Daily Reference Periods
A6: mg/Nm3 | B6: 1/2 hourly NH3 ELV | C6: Monthly mean of half-hourly averages | D6: Highest half- hourly average | E6: Daily NH3 ELV | F6: Monthly mean of daily averages | G6: Highest daily average | J6: =+A5 -> 2024 | K6: mg/Nm3 | L6: Monthly mean of half-hourly averages | M6: Highest half- hourly average | N6: Monthly mean of daily averages | O6: Highest daily average
A7: Jan | B7: None | C7: =AVERAGE(L7,L22) -> 3.15 | D7: =MAX(M7,M22) -> 11.8 | E7: 15 | F7: =AVERAGE(N7,N22) -> 3.1 | G7: =MAX(O7,O22) -> 4.9 | J7: A1 | K7: Jan | L7: 2.7 | M7: 6.5 | N7: 2.6 | O7: 4.1
A8: Feb | B8: =+B7 -> None | C8: =AVERAGE(L8,L23) -> 3.55 | D8: =MAX(M8,M23) -> 8 | E8: 15 | F8: =AVERAGE(N8,N23) -> 3.55 | G8: =MAX(O8,O23) -> 5.3 | K8: Feb | L8: 3.1 | M8: 8 | N8: 3.1 | O8: 4.8
A9: Mar | B9: =+B8 -> None | C9: 3.75 | D9: 19.3 | E9: 15 | F9: 3.65 | G9: 5.2 | K9: Mar | L9: 3.4 | M9: 9 | N9: 3.3 | O9: 5.2 | Q9: Whole Installation table A5:G18:
A10: Apr | B10: None | C10: 4.25 | D10: 13 | E10: 15 | F10: 4.2 | G10: 6.8 | K10: Apr | L10: 4.1 | M10: 12.2 | N10: 4.1 | O10: 6.8 | Q10: Mean: for 1/2 hourly and daily periods calculate mean of values across all operational combustion lines for the month
A11: May | B11: None | C11: 3.75 | D11: 11.3 | E11: 15 | F11: 3.65 | G11: 5.2 | K11: May | L11: 3.7 | M11: 11.3 | N11: 3.6 | O11: 5.2
A12: Jun | B12: None | C12: 3.45 | D12: 12.2 | E12: 15 | F12: 3.45 | G12: 5 | K12: Jun | L12: 3.3 | M12: 11.6 | N12: 3.3 | O12: 5
A13: Jul | B13: None | C13: 2.9 | D13: 11.6 | E13: 15 | F13: 2.85 | G13: 5.3 | K13: Jul | L13: 3.7 | M13: 11.6 | N13: 3.7 | O13: 5.3 | Q13: Maximum: for 1/2 hourly and daily periods use the highest value across all operational combustion lines for the month
A14: Aug | B14: None | C14: 2.5 | D14: 16.6 | E14: 15 | F14: 2.4 | G14: 4.5 | K14: Aug | L14: 2.9 | M14: 16.6 | N14: 2.8 | O14: 4.5
A15: Sep | B15: None | C15: 3.35 | D15: 16.1 | E15: 15 | F15: 3.25 | G15: 7.5 | K15: Sep | L15: 4.1 | M15: 16.1 | N15: 3.9 | O15: 7.5
A16: Oct | B16: None | C16: 4.65 | D16: 12.6 | E16: 15 | F16: 4.65 | G16: 7.9 | K16: Oct | L16: 5.1 | M16: 12.6 | N16: 5.1 | O16: 7.9
A17: Nov | B17: None | C17: 5.5 | D17: 16.5 | E17: 15 | F17: 5.45 | G17: 8.2 | K17: Nov | L17: 5.7 | M17: 16.5 | N17: 5.7 | O17: 8.1
A18: Dec | B18: None | C18: 4.55 | D18: 13 | E18: 15 | F18: 4.55 | G18: 7.6 | K18: Dec | L18: 4.8 | M18: 13 | N18: 4.8 | O18: 7.6
K19: Annual | L19: =AVERAGE(L7:L18) -> 3.883333333 | M19: =MAX(M7:M18) -> 16.6 | N19: =AVERAGE(N7:N18) -> 3.833333333 | O19: =MAX(O7:O18) -> 8.1
J21: =+A5 -> 2024 | K21: mg/Nm3 | L21: Monthly mean of half-hourly averages | M21: Highest half- hourly average | N21: Monthly mean of daily averages | O21: Highest daily average
J22: A2 | K22: Jan | L22: 3.6 | M22: 11.8 | N22: 3.6 | O22: 4.9
K23: Feb | L23: 4 | M23: 8 | N23: 4 | O23: 5.3
K24: Mar | L24: 4.1 | M24: 19.3 | N24: 4 | O24: 5.1
K25: Apr | L25: 4.4 | M25: 13 | N25: 4.3 | O25: 6.8
K26: May | L26: 3.8 | M26: 8.7 | N26: 3.7 | O26: 4.6
K27: Jun | L27: 3.6 | M27: 12.2 | N27: 3.6 | O27: 4.7
K28: Jul | L28: 2.1 | M28: 4.6 | N28: 2 | O28: 2.7
K29: Aug | L29: 2.1 | M29: 8.7 | N29: 2 | O29: 2.8
K30: Sep | L30: 2.6 | M30: 7.4 | N30: 2.6 | O30: 4
K31: Oct | L31: 4.2 | M31: 11.7 | N31: 4.2 | O31: 6
K32: Nov | L32: 5.3 | M32: 12.1 | N32: 5.2 | O32: 8.2
K33: Dec | L33: 4.3 | M33: 12.8 | N33: 4.3 | O33: 6.1
K34: Annual | L34: =AVERAGE(L22:L33) -> 3.675 | M34: =MAX(M22:M33) -> 19.3 | N34: =AVERAGE(N22:N33) -> 3.625 | O34: =MAX(O22:O33) -> 8.2
J36: =+A5 -> 2024 | K36: mg/Nm3 | L36: Monthly mean of half-hourly averages | M36: Highest half- hourly average | N36: Monthly mean of daily averages | O36: Highest daily average
J37: A3 | K37: Jan
K38: Feb
K39: Mar
K40: Apr
K41: May
K42: Jun
K43: Jul
K44: Aug
K45: Sep
K46: Oct
K47: Nov
A48: Comments : | K48: Dec
A49: An indicated ELV value of zero in the table above means that no ammonia limit is/was set in the permit. | K49: Annual | L49: =AVERAGE(L37:L48) ->  | M49: =MAX(M37:M48) -> 0 | N49: =AVERAGE(N37:N48) ->  | O49: =MAX(O37:O48) -> 0
J51: =+A5 -> 2024 | K51: mg/Nm3 | L51: Monthly mean of half-hourly averages | M51: Highest half- hourly average | N51: Monthly mean of daily averages | O51: Highest daily average
J52: A4 | K52: Jan
C53: 2025-01-31 | K53: Feb
K54: Mar
K55: Apr
K56: May
K57: Jun
K58: Jul
K59: Aug
K60: Sep
K61: Oct
K62: Nov
K63: Dec
K64: Annual | L64: =AVERAGE(L52:L63) ->  | M64: =MAX(M52:M63) -> 0 | N64: =AVERAGE(N52:N63) ->  | O64: =MAX(O52:O63) -> 0
J66: =+A5 -> 2024 | K66: mg/Nm3 | L66: Monthly mean of half-hourly averages | M66: Highest half- hourly average | N66: Monthly mean of daily averages | O66: Highest daily average
J67: A5 | K67: Jan
K68: Feb
K69: Mar
K70: Apr
K71: May
K72: Jun
K73: Jul
K74: Aug
K75: Sep
K76: Oct
K77: Nov
K78: Dec
K79: Annual | L79: =AVERAGE(L67:L78) ->  | M79: =MAX(M67:M78) -> 0 | N79: =AVERAGE(N67:N78) ->  | O79: =MAX(O67:O78) -> 0

Sheet Template changes log
A1: Log of changes to template (Environment Agency use only)
A3: Date | B3: Description of change | C3: New version number and date
A4: 2024-01-16 | B4: Air (periodic) tab: corrected default O2 reference from 6 to 11% | C4: Version 23.5a (for incinerators) - 16/01/2024
A5: 2024-09-23 | B5: Air (periodic) tab: corrected symbol for Thallium to Tl
A6: 2024-09-23 | B6: Air (periodic) tab: removed last year's references to different emission limit values applying from 03/12/23 and updated all relevant ELVs
A7: 2024-09-23 | B7: Tabs for continuously monitored pollutants (HCl, SO2 etc.): changed terminology in table headings to improve clarity
A8: 2024-09-23 | B8: Tabs for continuously monitored pollutants (HCl, SO2 etc.): removed last year's references to different emission limit values applying from 03/12/23 and updated all relevant ELVs
A9: 2024-09-23 | B9: Perf 1 tab: updated formula for water usage to report m3 rather than litres and corrected error with formula copying operator name
A10: 2024-09-23 | B10: Operational Summary tab: table added on start-ups and shut-downs
A11: 2024-09-23 | B11: Operational Summary tab: table added on dioxins and mercury protocols
A12: 2024-09-23 | B12: Operational Summary tab: table added on AST, QAL 2 and calibration functions
A13: 2024-09-23 | B13: CO2 N2O tab: various changes made to notes to reflect the fact that most plants should now have calibrated CEMS and flow meters + some have C14 samplers and more up to date industry data | C13: Version 24a (for incinerators) - 23/09/24
A14: 2024-11-08 | B14: CO2 N2O tab: Changed the N2O CO2 equivalence factor from 298 to 265 in line with recently updated government greenhouse gas figures: https://www.gov.uk/government/publications/greenhouse-gas-reporting-conversion-factors-2024
A15: 2024-11-08 | B15: CO2 N2O tab: Added an additional requirement for municipal EfW plants to state the yearly average biogenic percentage of the waste by mass, and reference to a document which sets out a methodology for calculating NCV of waste from the results of C14 sampling.
A16: 2024-11-08 | B16: Permit Compliance tab: Two additional columns added + explanatory notes to the table entitled "Summary of non-compliances under the permit" to allow CCS scores to be stated where relevant.
A17: 2024-11-08 | B17: Residue Quality tab: Note added explaining application of TOC and LOI limits and asking operators to report both metrics where measured. | C17: Version 24.1a (for incinerators) - 08/11/24
A18: 2024-11-27 | B18: Operational Summary tab: Tables on mercury & dioxins protocols and ASTs removed (covered instead by new tables added to updated Air 9 periodic monitoring form) | C18: Version 24.2a (for incinerators) - 27/11/24
C53: 2025-01-31
